Cogmind - Beta 15 @@@ ROGUE MODE // 2025.09.01 @ 19:08:44 Player: saltine Result: Heading to fleet! Performance ------------- Evolutions (9) 4500 Regions Visited (28) 5600 Robots Destroyed (471) 2355 Value Destroyed (28350) 28350 Prototype IDs (366) 7320 Alien Tech Used (7) 1400 Bonus (38482) 38482 TOTAL SCORE: 88007 Bonus ------- High Alert Combat Kills 7402 Follower Combat Kills 3161 Network Hubs Disabled 200 Registered with UFD 300 Met Optimus in HQ 500 Met Zhirov 300 Met Warlord at Base 500 MAIN.C Attacked Warlord 500 Warlord Defense Kills 814 Built Enhanced Grunts 300 Met R17 at Cetus 500 Used Core Reset Matrix 3000 Met R17 at Research 2000 Scanned by Researcher 500 Destroyed MAIN.C Guards 500 Met MAIN.C 5000 Destroyed MAIN.C Shell 5000 Destroyed MAIN.C 10000 Win 3000 Friendly Fire -4995 Cogmind --------- Core Integrity 592/1600 Matter 300/300 Energy 211/220 System Corruption 15% Temperature Cool (2) Movement Walking (97) Location To Fleet Rendezvous Parts ------- > --- POWER (3) -------- Concept Zero-point Core > --- PROPULSION (6) --- High-density Centrium Leg Experimental Biometal Leg Experimental Biometal Leg Experimental Biometal Leg > --- UTILITY (12) ----- Concept Antigrav Storage Unit Heavy Regenerative Plating Graphene Brace > --- WEAPON (4) ------- Concept Plasma Driver Concept Plasma Driver > --- INVENTORY (25) --- Vortex Chain Reactor Concept Zero-point Core Enhanced Biometal Leg Enhanced Biometal Leg Centrium Leg Centrium Leg Concept Thermoelectric Network Experimental Energy Well (600) Concept NT7 Matterbank (750) Advanced Terrain Scanner Concept Weapon Articulator Experimental Armor Integrity Analyzer Experimental Kinecellerator Advanced Weapon Cycler Advanced Force Field Advanced Force Field Concept Matter Streamer Cooled Nova Cannon Null Cannon Concept Plasma Driver Concept Miniperforator Omega Cannon Z-bomb Delivery System Peak State ------------ > --- POWER ------------ Hybrid Graviton Reactor Concept Zero-point Core Concept Zero-point Core > --- PROPULSION ------- Enhanced Armored Heavy Treads Experimental Heavy Siege Treads Experimental Heavy Siege Treads > --- UTILITY ---------- 2N-1CE's Frost Array Concept Antigrav Storage Unit Concept Weapon Articulator Concept Core Analysis Suite Concept Cloak Mesh Concept Cloak Mesh Heavy Regenerative Plating Graphene Brace Concept Beam Splitter Experimental EM Shield Concept Antimissile System > --- WEAPON ----------- Concept Plasma Driver Concept Plasma Driver Concept Plasma Driver Concept Deflector Sword > --- INVENTORY -------- Concept Zero-point Core Concept Zero-point Core Enhanced Armored Heavy Treads Experimental Heavy Siege Treads Concept Thermoelectric Network Concept NT7 Matterbank Advanced Terrain Scanner Concept Hypertargeting System Concept Core Analysis Suite Experimental Kinecellerator Improved Focal Shield Concept Matter Streamer Transdimensional Reconstructor Potential Cannon Null Cannon Concept Miniperforator Omega Cannon Concept Helical Railcannon Compact Tesla Bomb Launcher Concept EMP Blanket Launcher Z-bomb Delivery System [Rating: 316] Favorites ----------- Power Quantum Reactor Engine Cooled Ion Engine Power Core Concept Zero-point Core Reactor Quantum Reactor Propulsion Overtuned Huge Scrapsphere Treads Light Treads Leg Experimental Biometal Leg Wheel Overtuned Huge Scrapsphere Hover Unit Aerolev Unit Utility Huge Storage Unit Device Scrap Suit Storage Huge Storage Unit Processor Experimental Targeting Computer Hackware Advanced Hacking Suite Protection Heavy Regenerative Plating Weapon Advanced KE Penetrator Energy Gun Overtuned Beamcaster Energy Cannon Concept Plasma Driver Ballistic Gun Advanced KE Penetrator Ballistic Cannon Light Cannon Launcher Concept EMP Blanket Launcher Special Weapon Plasma Cutter Impact Weapon Heavy Flail Slashing Weapon Concept Deflector Sword Build | -11 -10 -10 -9 -9 -9 -9 -6 -6 -6 -6 -6 -5 -5 -5 -5 -4 -4 -4 -4 -4 -3 -3 -3 -2 -2 -2 -1 -1 ------- Run | Yrd Mat Min Mat Sto Rec Scr Fac Ext Cet Arc Hub Fac Upp Upp War Pro Fac Upp Upp Zhi Pro Res Tes Res Qua Frg Acc Com Slots Evolved 18 | . . . 2 . . . 6 . . . . 2 . . . . 2 . . . . 2 . 2 . . 2 . Power 2 | . . . . . . . 1 . . . . . . . . . 1 . . . . . . . . . . . Propulsion 4 | . . . 1 . . . . . . . . 1 . . . . . . . . . . . 2 . . . . Utility 10 | . . . 1 . . . 3 . . . . 1 . . . . 1 . . . . 2 . . . . 2 . Weapon 2 | . . . . . . . 2 . . . . . . . . . . . . . . . . . . . . . Parts Attached 284 | 8 9 2 18 22 5 15 6 13 21 5 9 3 4 . 8 . 6 5 . 4 1 9 10 13 18 36 6 28 Power 29 | 2 . . 1 5 . . 1 1 3 . 2 . 1 . 1 . 1 . . . . 1 . 2 2 5 . 1 Engine 10 | 2 . . 1 5 . . 1 . 1 . . . . . . . . . . . . . . . . . . . Core 6 | . . . . . . . . 1 . . 1 . 1 . . . . . . . . . . . . 2 . 1 Reactor 13 | . . . . . . . . . 2 . 1 . . . 1 . 1 . . . . 1 . 2 2 3 . . Propulsion 46 | 2 1 . 6 7 . 8 . 2 2 1 . . . . . . . . . . . . . 3 2 3 . 9 Treads 31 | 2 . . 4 7 . 3 . 2 1 . . . . . . . . . . . . . . 3 2 3 . 4 Leg 6 | . . . . . . 1 . . . . . . . . . . . . . . . . . . . . . 5 Wheel 6 | . 1 . 2 . . 1 . . 1 1 . . . . . . . . . . . . . . . . . . Hover 3 | . . . . . . 3 . . . . . . . . . . . . . . . . . . . . . . Flight . | . . . . . . . . . . . . . . . . . . . . . . . . . . . . . Utility 118 | 2 3 1 6 1 1 1 3 5 7 3 5 3 2 . 4 . 5 3 . 2 . 7 4 3 7 20 6 14 Device 67 | 1 . . 1 . 1 1 2 3 2 2 3 1 2 . 2 . 3 3 . 2 . 6 2 3 4 11 5 7 Storage 14 | 1 3 . 1 . . . . . 1 . . . . . 1 . 1 . . . . . . . . 4 . 2 Processor 11 | . . . . . . . . . . 1 1 1 . . 1 . . . . . . . 1 . 1 1 1 3 Hackware 7 | . . . . . . . . . . . 1 1 . . . . 1 . . . . 1 . . 2 . . 1 Protection 19 | . . 1 4 1 . . 1 2 4 . . . . . . . . . . . . . 1 . . 4 . 1 Artifact . | . . . . . . . . . . . . . . . . . . . . . . . . . . . . . Weapon 91 | 2 5 1 5 9 4 6 2 5 9 1 2 . 1 . 3 . . 2 . 2 1 1 6 5 7 8 . 4 Energy Gun 9 | . . 1 1 . 3 . . . . . . . 1 . 2 . . . . . . . 1 . . . . . Energy Cannon 15 | . . . . 1 . 1 1 . 2 . . . . . . . . . . . 1 . 1 2 2 3 . 1 Ballistic Gun 24 | 2 1 . . 1 . 3 1 1 4 1 2 . . . 1 . . 1 . 1 . 1 3 1 . . . . Ballistic Cannon 22 | . 2 . 4 5 . 1 . 1 . . . . . . . . . . . . . . 1 . 3 3 . 2 Launcher 10 | . 1 . . 1 . . . 2 1 . . . . . . . . . . . . . . 2 1 1 . 1 Special Weapon 7 | . 1 . . . 1 1 . 1 1 . . . . . . . . 1 . 1 . . . . . . . . Impact Weapon 2 | . . . . 1 . . . . . . . . . . . . . . . . . . . . 1 . . . Slashing Weapon 2 | . . . . . . . . . 1 . . . . . . . . . . . . . . . . 1 . . Piercing Weapon . | . . . . . . . . . . . . . . . . . . . . . . . . . . . . . Special Melee Weapon . | . . . . . . . . . . . . . . . . . . . . . . . . . . . . . Unidentified Prototypes 35 | . . . 1 3 1 1 . . 7 . 3 1 . . 6 . 1 . . 2 . 1 . 1 1 4 . 2 Corrupted Parts 10 | . . . . . . . . . 1 1 2 . . . 2 . . . . . . . . . . 1 . 3 System Corruption 47 | . . . . . . . . . 1 2 7 . . . 13 . . . . . . . . . . 7 . 17 Parts Lost 39 | . 2 . 7 2 . . . 3 2 . 4 . . . . . . . . . 1 . . 1 2 3 . 12 Power 6 | . . . 2 1 . . . . . . 1 . . . . . . . . . . . . . . . . 2 Propulsion 8 | . 1 . 4 1 . . . . . . 1 . . . . . . . . . . . . . . . . 1 Utility 16 | . . . 1 . . . . 2 . . . . . . . . . . . . 1 . . . 1 3 . 8 Weapon 9 | . 1 . . . . . . 1 2 . 2 . . . . . . . . . . . . 1 1 . . 1 Highest Loss Streak 7 | . 1 . 2 1 . . . 3 1 . 4 . . . . . . . . . 1 . . 1 1 1 . 7 To Critical Strikes . | . . . . . . . . . . . . . . . . . . . . . . . . . . . . . Average Backups 21 | 3 10 19 21 24 25 23 21 21 21 21 20 20 21 23 23 23 22 23 23 23 24 23 23 20 20 20 20 21 Power 1 | . 1 1 . . 1 1 . 1 1 2 1 1 1 2 1 1 . . . . 1 1 1 1 1 1 2 2 Propulsion 2 | 1 2 3 5 8 8 5 1 1 . 1 2 1 1 1 1 1 1 1 1 . . . . 1 2 1 2 2 Utility 8 | . 2 8 6 5 6 7 8 8 10 8 7 12 11 12 12 13 13 14 14 15 16 13 12 10 7 6 7 8 Weapon 7 | . 4 6 7 8 8 8 6 7 7 7 6 4 6 7 7 7 6 6 6 5 6 7 7 6 7 8 8 6 Tool/Special . | . . . . . . . . . . . . . . . . . . . . . . . . . . . . . Unused Backups 69 | . 3 2 7 2 1 8 3 . 8 1 . . 1 . 3 . . 1 . 1 . 2 2 2 4 5 . 13 Power 8 | . . . . 2 . . . . 2 . . . . . . . . 1 . . . . . . 1 . . 2 Propulsion 16 | . . . 2 . 1 3 2 . . . . . . . . . . . . 1 . . . 1 . . . 6 Utility 28 | . 2 1 1 . . 3 . . 4 . . . 1 . 3 . . . . . . 2 . 1 3 3 . 4 Weapon 15 | . 1 . 4 . . 2 1 . 2 1 . . . . . . . . . . . . 1 . . 2 . 1 Tool/Special 2 | . . 1 . . . . . . . . . . . . . . . . . . . . 1 . . . . . Average Slot Usage (%) 85 | . 95 100 98 99 100 90 73 81 85 86 85 81 82 82 79 75 77 78 78 62 77 79 76 75 81 81 80 84 Engine 3 | . 14 14 10 10 11 11 13 12 4 . . . . . . . . . . . . . . . . . . . Core 1 | . . . . . . . . . 2 . . 5 5 5 2 . . . . . . . . . . 2 8 7 Reactor 5 | . . . . . . . . . 4 13 12 5 5 5 5 5 10 10 10 10 10 9 9 9 12 9 4 3 Treads 10 | . 21 14 25 32 33 25 6 6 1 . . . . . . . . . . . . . . 10 13 12 12 6 Leg 1 | . . . . . . . . . . . . . . . . . . . . . . . . . . . . 9 Wheel 5 | . 6 14 7 . . 3 6 6 11 13 12 11 11 11 11 11 10 10 10 10 10 9 9 1 . . . . Device 15 | . 10 13 6 9 11 11 12 18 18 13 13 11 11 11 11 10 14 15 15 14 14 16 14 19 16 17 28 21 Storage 6 | . 14 14 11 11 11 10 6 6 6 6 6 5 5 5 5 5 5 5 5 5 5 4 4 4 4 6 4 6 Processor 5 | . . . . . . . . . . . 1 10 11 11 11 11 10 10 10 10 10 9 13 8 10 7 4 8 Protection 6 | . . . 14 12 11 7 5 3 7 12 6 5 5 5 5 5 5 5 5 5 5 6 4 4 4 5 4 4 Energy Cannon 5 | . . . . 2 8 8 9 6 6 . 3 2 3 5 . . 3 . . . 2 3 . 1 10 8 12 12 Ballistic Gun 8 | . 22 . 1 . . . 3 10 16 26 21 20 16 11 18 22 16 17 19 2 17 14 16 10 2 . . . Ballistic Cannon 3 | . 5 26 19 18 8 4 6 5 . . . . . . . . . . . . . . . . 1 4 . . Peak Build Rating 316 | 7 9 10 20 25 29 48 66 74 109 109 109 121 119 109 127 126 141 142 142 140 142 155 176 225 225 294 315 316 Average Rating 142 | 5 7 9 16 21 23 31 60 66 90 108 103 113 111 108 117 119 133 133 134 108 136 152 160 202 215 248 306 285 On Entrance 110 | . 7 9 10 19 24 24 44 65 68 109 109 101 115 114 109 126 119 139 137 134 140 142 152 169 212 214 294 306 Naked Turns . | . . . . . . . . . . . . . . . . . . . . . . . . . . . . . Heaviest Build 226 | 13 52 52 101 104 101 107 144 145 157 157 159 153 154 152 154 157 182 185 182 182 176 196 199 205 225 226 143 161 Greatest Support 280 | 40 40 10 60 60 60 60 20 20 80 32 32 40 40 40 40 40 40 40 40 40 40 40 40 240 260 280 280 280 Greatest Overweight (x) 52 | 3 5 5 3 1 1 5 7 7 7 52 7 3 3 3 3 3 4 4 4 4 4 4 4 9 . 1 . 47 Average Overweight (x) 2 | . 1 5 1 1 1 2 6 6 4 22 4 3 3 3 3 3 4 4 4 3 4 4 4 1 . . . . Largest Inventory Capacity 25 | 8 20 20 25 25 25 25 25 25 25 25 25 25 25 25 25 25 25 25 25 25 25 25 25 25 25 25 25 25 Average Capacity 24 | 7 11 20 22 25 25 24 25 25 25 25 25 25 25 25 25 25 25 25 25 25 25 25 25 25 25 25 25 25 Most Carried 25 | 5 20 20 25 25 25 25 25 25 25 25 25 24 25 25 25 25 25 25 25 25 25 25 25 25 25 25 25 25 Average Carried 24 | 3 10 19 21 24 24 24 24 24 24 24 24 23 24 24 24 25 24 24 24 24 24 24 24 24 24 24 24 24 Final Capacity 25 | 8 20 20 25 25 25 25 25 25 25 25 25 25 25 25 25 25 25 25 25 25 25 25 25 25 25 25 25 25 Final Carried 25 | 5 20 19 25 25 25 25 25 25 25 25 24 23 25 25 25 25 25 25 25 25 24 25 25 24 25 25 25 25 Class Distribution -------------------- 20% | Scavenger-Scrapper 15% | Scavenger-Tank 10% | Scavenger-Mutant 9% | Tank 8% | Mutant 8% | Alien-Tank 5% | Pyromaniac-Gunner 5% | Alien-Gunner 4% | Scrapper 3% | Infiltrator-Tank 3% | Commander-Mutant Dominant Class ---------------- Mutant | -10/Materials Mutant | -10/Mines Scavenger-Mutant | -9/Materials Scavenger-Mutant | -9/Storage Commander-Mutant | -9/Recycling Scavenger-Mutant | -9/Scraptown Tank | -6/Factory Scrapper | -6/Extension Scavenger-Tank | -6/Cetus Scavenger-Tank | -6/Archives Scavenger-Gunner | -6/Hub_04(d) Scavenger-Scrapper | -5/Factory Scavenger-Scrapper | -5/Upper Caves Scavenger-Scrapper | -5/Upper Caves Scavenger-Scrapper | -5/Warlord Scavenger-Scrapper | -4/Proximity Caves Scavenger-Scrapper | -4/Factory Scavenger-Scrapper | -4/Upper Caves Scavenger-Scrapper | -4/Upper Caves Scavenger-Scrapper | -4/Zhirov Scavenger-Scrapper | -3/Proximity Caves Scavenger-Scrapper | -3/Research Scavenger-Scrapper | -3/Testing Infiltrator-Tank | -2/Research Tank | -2/Quarantine Tank | -2/Protoforge Alien-Tank | -1/Access Alien-Tank | -1/Command Resources | -11 -10 -10 -9 -9 -9 -9 -6 -6 -6 -6 -6 -5 -5 -5 -5 -4 -4 -4 -4 -4 -3 -3 -3 -2 -2 -2 -1 -1 ----------- Run | Yrd Mat Min Mat Sto Rec Scr Fac Ext Cet Arc Hub Fac Upp Upp War Pro Fac Upp Upp Zhi Pro Res Tes Res Qua Frg Acc Com Matter Collected 19872 | 300 398 185 1104 772 137 280 43 1662 320 575 547 649 367 32 876 138 266 396 423 114 88 522 1631 1574 1184 3144 96 2049 Remotely 2175 | . . . . . . . . . . . . 291 . . . . . . 186 . . . 387 607 181 118 . 405 Salvage Created 27821 | 36 533 159 1251 562 155 . 43 1262 275 768 717 775 246 . 464 17 404 657 992 130 . 1006 2453 3460 2799 5435 256 2966 Parts 1453 | 6 31 4 87 37 12 . 4 54 26 44 43 62 15 . 30 5 18 32 47 8 . 49 159 165 153 255 10 97 Haulers Intercepted 10 | . 1 . 3 2 . . . . . . . . . . . . . . . . . 2 1 1 . . . . Recyclers Shooed 13 | 1 3 1 2 . . . . 2 . . . . . . . . . . . . . . . 4 . . . . Parts Field Recycled . | . . . . . . . . . . . . . . . . . . . . . . . . . . . . . Retrieved Matter . | . . . . . . . . . . . . . . . . . . . . . . . . . . . . . Parts Self-Destructed 119 | . . . . . . . . . . . . . 23 . . 9 . 42 38 7 . . . . . . . . Prevented 1 | . . . . . . . . . . . . . 1 . . . . . . . . . . . . . . . Kills | -11 -10 -10 -9 -9 -9 -9 -6 -6 -6 -6 -6 -5 -5 -5 -5 -4 -4 -4 -4 -4 -3 -3 -3 -2 -2 -2 -1 -1 ------- Run | Yrd Mat Min Mat Sto Rec Scr Fac Ext Cet Arc Hub Fac Upp Upp War Pro Fac Upp Upp Zhi Pro Res Tes Res Qua Frg Acc Com Combat Hostiles Destroyed 367 | . 11 3 38 18 4 . . 16 2 1 7 14 4 . 7 3 6 13 12 . . 10 28 43 35 68 2 22 Guns 183 | . 9 1 1 . . . . 4 . 1 7 10 4 . 7 . 5 8 12 . . 10 28 36 25 15 . . Cannons 114 | . 2 2 23 15 4 . . 8 . . . . . . . . 1 . . . . . . 1 7 33 1 17 AOE 38 | . . . 14 3 . . . 3 . . . 4 . . . 3 . 5 . . . . . 6 . . . . Classes Destroyed 30 | 1 5 1 2 1 1 . . 4 . 2 1 . . . . . 1 . . . . . 2 2 1 5 . 1 Worker 18 | . 1 . 2 1 . . 1 3 . . 3 2 . . . . . . . . . 1 1 3 . . . . Builder 18 | . . . . . . . . 1 . . 1 1 . . . . 1 . . . . 2 2 4 1 3 2 . Tunneler 8 | 3 . . . . . . 1 . . . . 1 . . . . . . . . . . . 3 . . . . Hauler 10 | . 1 . 3 2 . . . . . . . . . . . . . . . . . 2 1 1 . . . . Recycler 15 | . 1 1 3 . . . . 4 . . . . . . . . . . . . . . . 3 . . . 3 Carrier 1 | . . . . . . . . . . . . . . . . . . . . . . . . . . 1 . . Mechanic 2 | . . . . . . . . . . . . . . . . . . . . . . . . 1 . 1 . . Operator 13 | . . . . . . . . . . 9 . . . . . . . . . . . . . 1 . . . 3 Drone 6 | . . . . . . . . . . . . . . . . . . . . . . . . 1 . 5 . . Watcher 12 | . . . . 1 . . . 1 2 . . . . . . . . . . . . . 3 2 1 . 2 . Swarmer 57 | . 3 . 12 6 1 . . 5 . . . 4 . . . 3 2 8 . . . 4 3 5 . . . 1 Saboteur 3 | . . . . . . . . . . . . . . . . . . . . . . . 1 1 . 1 . . Grunt 87 | . 8 2 15 1 . . . 4 . . 2 3 1 . 2 . 3 1 5 . . 3 13 11 6 7 . . Brawler 6 | . . . . . . . . 1 . . . . . . 1 . . . 1 . . . . 2 . 1 . . Duelist 7 | . . . 1 . . . . . . . . . . . 1 . . . . . . . 2 1 2 . . . Protector 2 | . . . . . . . . . . . 1 . . . 1 . . . . . . . . . . . . . Researcher 4 | . . . . . . . . . . . . . . . . . . . . . . . 1 . . 3 . . Sentry 58 | . . . 10 11 2 . . 4 . 1 . 1 . . . . . 3 2 . . 2 1 5 . 13 . 3 Demolisher 3 | . . 1 . . . . . . . . . . . . 1 . . . . . . . . . . . . 1 Specialist 4 | . . . . . . . . . . . . . . . . . 1 . . . . . . . 3 . . . Hunter 16 | . . . . . . . . 1 . . . 2 . . . . . . . . . 1 . 5 1 4 . 2 Programmer 61 | . . . . . 1 . . . . . 1 4 3 . 1 . . . 2 . . . 7 11 11 10 2 8 Heavy 1 | . . . . . . . . . . . . . . . . . . . . . . . . . . . . 1 Behemoth 3 | . . . . . . . . 1 . . . . . . . . . 1 . . . . . 1 . . . . Cetus Guard 2 | . . . . . . . . . 2 . . . . . . . . . . . . . . . . . . . Quarantine Guard 11 | . . . . . . . . . . . . . . . . . . . . . . . . . 11 . . . M Guard 2 | . . . . . . . . . . . . . . . . . . . . . . . . . . . . 2 Lightning 3 | . . . . . . . . . . . 3 . . . . . . . . . . . . . . . . . Hotshot 11 | . . . . . . . . . . . . . . . . . . . . . . . . . . 11 . . Decapitator 6 | . . . . . . . . . . . . . . . . . . . . . . . . . . 6 . . Immortal 1 | . . . . . . . . . . . . . . . . . . . . . . . . . . 1 . . Combat Programmer 2 | . . . . . . . . . . . . . . . . . . . . . . . . . . . . 2 Alpha 7 2 | . . . . . . . . . . . . . . . . . . . . . . . . . . 2 . . Fortress 1 | . . . . . . . . . . . . . . . . . . . . . . . . . 1 . . . V-Series 7 | . . . . . . . . . . . . . . . . . . . . . . . . . . 7 . . Protovariant X 1 | . . . . . . . . . . . . . . . . . . . . . . . 1 . . . . . Scrapoid 5 | . . . . . . . . . . 4 . . . . . . . . . . . 1 . . . . . . Tinkerer 1 | . . . . . . . . . . . . . . . . . . . . . . . . . . 1 . . Thug 2 | . . . . . . . . . . . . . . . . . . . 2 . . . . . . . . . Savage 2 | . . . . . . . . . . 1 1 . . . . . . . . . . . . . . . . . Best Kill Streak 12 | 3 3 3 7 6 2 . 1 7 2 2 5 9 2 . 4 3 3 5 7 . . 7 9 12 6 9 5 5 Combat Bots Only 10 | . 3 2 7 6 2 . . 4 1 1 3 6 2 . 4 3 3 5 7 . . 3 8 10 5 9 2 5 Max Kills in Single Turn 6 | 1 1 1 3 2 1 . 1 2 2 2 2 3 1 . 2 2 1 3 1 . . 1 2 6 1 2 2 1 Gunslinging 1 | . . . . . . . . . . . . . . . . . . . . . . . 1 1 . . . . Exploded 4 | . . . 3 2 . . . 2 . . . 3 . . . 2 . 3 . . . . . 4 . . . . Melee . | . . . . . . . . . . . . . . . . . . . . . . . . . . . . . Uniques/NPCs Destroyed 3 | . . . . . . . . . 1 . . . . . . . . . . . . . . . . . . 2 A7 (-6/Cetus) MAIN.C Shell (-1/Command) MAIN.C (-1/Command) Combat | -11 -10 -10 -9 -9 -9 -9 -6 -6 -6 -6 -6 -5 -5 -5 -5 -4 -4 -4 -4 -4 -3 -3 -3 -2 -2 -2 -1 -1 -------- Run | Yrd Mat Min Mat Sto Rec Scr Fac Ext Cet Arc Hub Fac Upp Upp War Pro Fac Upp Upp Zhi Pro Res Tes Res Qua Frg Acc Com Hostile Shots Fired 2060 | . 74 14 151 122 2 . . 185 28 7 55 98 3 . 5 15 14 22 63 . 2 28 135 273 176 256 6 326 Missed 504 | . 20 1 49 30 1 . . 58 15 2 9 26 1 . 3 4 4 10 14 . 1 7 32 71 49 48 1 48 Intercepted 34 | . . . . . . . . . . . . . . . . . . . . . . . . . . 1 . 33 Deflected 40 | . . . . . . . . . . . . . . . . . . . . . . . . . . 7 1 32 Hits 1556 | . 54 13 102 92 1 . . 127 13 5 46 72 2 . 2 11 10 12 49 . 1 21 103 202 127 208 5 278 Melee 74 | . . . 3 . . . . 2 . . . . . . . . . . . . . . 2 7 22 38 . . Projectile 1482 | . 54 13 99 92 1 . . 125 13 5 46 72 2 . 2 11 10 12 49 . 1 21 101 195 105 170 5 278 AOE 12 | . . 6 . . 1 . . . . . 1 . . . 2 . . . . . . . . . . . . 2 Critical Strikes 87 | . . . 1 1 . . . 3 4 1 6 2 . . . . . . 6 . . 1 8 9 12 30 . 3 Actively Blocked 40 | . . . . . . . . . . . . . . . . . . . . . . . . 6 5 26 . 3 Part Disruptions 4 | . . . . . . . . . . . 2 . . . . . . . . . . . 1 . . 1 . . Damage Taken 27574 | . 609 321 1313 1136 117 . . 1480 374 116 1758 1066 81 . 151 215 82 206 729 . 27 328 1309 3114 1706 4502 . 6834 Core 2396 | . 94 123 98 127 . . . 126 20 . 292 66 . . . 79 16 9 72 . . 53 82 35 26 179 . 899 Absorbed by Shields 5999 | . . . . . . . . 209 104 . . . . . 68 28 80 96 181 . . 340 788 1464 1261 1380 . . Reduced by Siege Mode 1310 | . . . . . . . . . . . . . . . . . . . . . . . . 199 92 472 . 547 Redirected to Shielding 278 | . . . . . . . . . . . . . . . . . . . . . . . . . . 170 . 108 Ignored by Resistances 7333 | . . . . . . . . . . . . 240 18 . . . 32 . 63 . . . 232 456 555 956 95 4686 Regen/Repaired (Parts) 5853 | . 96 . 228 120 . . 165 . 46 . 92 441 81 . 177 . 15 10 130 . . 51 454 948 629 1255 . 915 Core Remaining (%) 64 | 100 . 13 . . . 43 . . . . 48 . . . . 85 . . . . 91 . 89 . . 70 . 37 Volleys Fired 1519 | 10 64 10 94 54 9 . 7 53 12 30 32 36 8 . 13 5 20 16 22 11 5 42 118 150 115 289 4 290 Largest 4 | 2 2 2 2 2 2 . 2 4 4 4 4 4 4 . 4 1 4 4 4 1 1 4 4 4 3 4 3 3 Hottest 550 | 40 100 70 100 66 101 . 165 239 280 140 190 190 190 . 140 120 137 220 202 32 105 212 210 249 293 550 420 420 Shots Fired 3020 | 20 126 21 176 101 18 . 10 180 18 120 110 105 29 . 50 5 41 45 89 11 5 115 287 271 138 411 12 506 Gun 1531 | 20 119 6 8 . 6 . . 80 3 120 103 89 24 . 50 3 29 42 89 11 . 97 260 250 89 33 . . Cannon 1430 | . 6 15 154 98 12 . 10 98 5 . 7 13 5 . . . 12 . . . 5 18 27 16 46 373 12 498 Launcher 51 | . . . 11 3 . . . 2 7 . . 3 . . . 2 . 2 . . . . . 5 3 5 . 8 Special 8 | . 1 . 3 . . . . . 3 . . . . . . . . 1 . . . . . . . . . . Kinetic 1802 | 20 125 18 162 98 6 . . 127 3 120 103 89 24 . 49 . 29 32 74 11 . 97 219 164 89 96 . 47 Thermal 1105 | . 1 3 3 . 6 . 10 51 5 . 7 13 5 . . 3 12 10 15 . 5 18 68 97 45 265 12 451 Explosive 28 | . . . 11 3 . . . 2 . . . 3 . . . 2 . 2 . . . . . 5 . . . . Electromagnetic 80 | . . . . . 6 . . . 7 . . . . . . . . . . . . . . 5 4 50 . 8 Entropic 1 | . . . . . . . . . . . . . . . 1 . . . . . . . . . . . . . Robot Hit Streak 26 | 6 10 5 11 18 15 . 23 24 7 8 6 9 7 . 8 18 8 14 22 7 . 7 17 24 26 23 4 18 Robot Miss Streak 6 | 3 4 2 4 4 1 . . 6 1 6 5 6 1 . 3 1 2 2 2 1 . 4 3 4 6 6 4 2 Penetration Max 3 | . . . . . . . . 1 . 1 1 1 1 . 1 . 2 1 . . . 2 1 3 1 2 1 2 Secondary Targets 36 | . 1 . . . . . . . . 1 1 2 . . 1 . 1 3 5 . . 6 8 7 . . . . Max Gunslinging Chain 2 | . 1 . . . . . . . . 1 1 1 . . 1 . 1 1 1 . . 1 2 2 . . . . Shots Hit Robots 1538 | 9 70 14 102 63 15 . 8 89 28 55 59 56 19 . 31 3 22 37 62 9 . 58 147 169 97 198 6 112 Core Hits 844 | 6 32 5 59 22 7 . 2 41 13 30 24 29 9 . 14 8 13 26 24 3 . 27 83 135 71 110 2 49 Critical Kills 147 | . . . . . . . . 2 1 5 4 4 . . 3 . 2 1 4 . . 3 16 30 25 41 1 5 Critical Parts Destroyed 202 | . 1 . . . . . . . . 6 10 5 2 . 5 . 4 1 5 . . 5 30 50 43 34 . 1 Critical Strikes 397 | . 1 . 1 5 . . . 8 3 11 14 9 2 . 9 . 6 4 16 . . 8 46 84 70 89 1 10 Burn 5 | . . . . . . . . . . . . . . . . . . 1 4 . . . . . . . . . Meltdown 14 | . . . . . . . . 1 1 . . . . . . . . . . . . . . . . 6 1 5 Destroy 362 | . 1 . . . . . . 2 . 11 14 9 2 . 9 . 6 3 12 . . 8 46 84 70 83 . 2 Blast 14 | . . . 1 5 . . . 5 . . . . . . . . . . . . . . . . . . . 3 Sever 2 | . . . . . . . . . 2 . . . . . . . . . . . . . . . . . . . Melee Attacks 53 | . . . . 12 . . . . 16 . . . . . . . . . . . . . . . 1 6 4 14 Kinetic 1 | . . . . . . . . . . . . . . . . . . . . . . . . . 1 . . . Impact 12 | . . . . 12 . . . . . . . . . . . . . . . . . . . . . . . . Slashing 40 | . . . . . . . . . 16 . . . . . . . . . . . . . . . . 6 4 14 Piercing . | . . . . . . . . . . . . . . . . . . . . . . . . . . . . . Sneak Attacks 20 | . . . . 2 . . . . 16 . . . . . . . . . . . . . . . . . 1 1 Combat Hostiles . | . . . . . . . . . . . . . . . . . . . . . . . . . . . . . Follow-up Attacks . | . . . . . . . . . . . . . . . . . . . . . . . . . . . . . Damage Inflicted 63215 | 71 678 224 2720 1593 301 . 220 3129 1460 1756 1845 2207 621 . 1177 476 766 1464 1832 277 . 1992 4662 7916 2286 10457 681 12404 Guns 24944 | 71 616 54 39 . 32 . . 1051 73 1756 1815 1568 522 . 1177 163 703 1062 1832 277 . 1828 4607 4391 917 390 . . Cannons 28618 | . 54 170 1805 1278 236 . 220 1812 142 . 30 31 99 . . . 63 . . . . 148 55 974 1170 9099 405 10827 Explosions 6238 | . . . 752 150 . . . 266 375 . . 608 . . . 313 . 402 . . . . . 2460 195 584 . 133 Melee 3110 | . . . . 136 . . . . 870 . . . . . . . . . . . . . . . . 384 276 1444 Ramming 305 | . 8 . 124 29 33 . . . . . . . . . . . . . . . . 16 . 91 4 . . . Kinetic 31948 | 71 670 185 1844 1278 120 . . 2081 73 1756 1815 1568 522 . 1177 . 703 711 1509 277 . 1828 4376 3344 917 1005 . 4118 Thermal 20341 | . . 39 . . 116 . 220 782 142 . 30 31 99 . . 163 63 351 323 . . 148 286 2267 1136 7009 405 6731 Explosive 4635 | . . . 752 150 . . . 266 . . . 608 . . . 313 . 402 . . . . . 2144 . . . . Electromagnetic 2876 | . . . . . 32 . . . 375 . . . . . . . . . . . . . . 70 229 2059 . 111 Impact 136 | . . . . 136 . . . . . . . . . . . . . . . . . . . . . . . . Slashing 2974 | . . . . . . . . . 870 . . . . . . . . . . . . . . . . 384 276 1444 Piercing . | . . . . . . . . . . . . . . . . . . . . . . . . . . . . . Highest Corruption 26 | . 5 5 1 1 1 . . . 2 2 26 1 2 2 15 . . . 1 1 1 . . 2 4 25 . 16 Average Corruption 3 | . 1 5 1 1 1 . . . 1 1 14 1 1 2 4 . . . 1 1 1 . . 1 3 8 . 12 Corruption Purged 25 | . . . . . . . . . . 4 . . . . . . . . . . . . . . 4 . . 17 Corruption Blocked . | . . . . . . . . . . . . . . . . . . . . . . . . . . . . . Effects 290 | . 10 21 18 15 9 . . . 4 6 11 . 8 7 1 . . . 7 . 3 . . 20 23 71 . 56 Message Errors 64 | . 3 6 8 2 2 . . . 2 1 2 . 1 3 . . . . . . . . . 4 4 11 . 15 Matter Fused 60 | . 1 3 2 6 2 . . . . 3 . . 2 2 . . . . 2 . 2 . . 3 7 14 . 11 Heat Flow Errors 37 | . 3 4 3 . 2 . . . . . 1 . 1 . . . . . 1 . . . . 2 6 9 . 5 Energy Discharges 41 | . . 3 1 1 2 . . . 2 . 1 . 2 . 1 . . . 1 . . . . 3 3 12 . 9 Parts Rejected 3 | . . . 1 . . . . . . . . . . . . . . . . . . . . 1 . 1 . . Parts Fused 2 | . . 1 . . . . . . . . . . . . . . . . . . . . . . . 1 . . Data Loss (minor) 37 | . 2 3 2 2 1 . . . . 1 1 . . 2 . . . . 1 . . . . 4 2 11 . 5 Data Loss (major) 9 | . 1 . . 1 . . . . . . 1 . 2 . . . . . . . . . . . . 2 . 2 Misfires 11 | . . 1 1 . . . . . . . 1 . . . . . . . 1 . . . . 1 . 4 . 2 Alerts 11 | . . . . 2 . . . . . . . . . . . . . . 1 . 1 . . 2 1 1 . 3 Misdirections 1 | . . . . . . . . . . . . . . . . . . . . . . . . . . 1 . . Weapon Failures 14 | . . . . 1 . . . . . 1 4 . . . . . . . . . . . . . . 4 . 4 Overload Shots . | . . . . . . . . . . . . . . . . . . . . . . . . . . . . . Overflow Damage 2217 | . . 12 30 106 20 . 25 10 72 . . 59 . . . . . . . . . 5 . 59 34 778 260 747 Projectiles 1705 | . . 12 14 15 20 . 25 10 . . . . . . . . . . . . . 5 . . 34 673 150 747 Explosions 111 | . . . 16 . . . . . 2 . . 59 . . . . . . . . . . . 34 . . . . Melee 401 | . . . . 91 . . . . 70 . . . . . . . . . . . . . . 25 . 105 110 . Knockbacks 49 | . . 2 14 4 . . . 5 . . . . . . . . . . . . . . 1 1 . 12 . 10 Impact 3 | . . . 2 . . . . . . . . . . . . . . . . . . . . 1 . . . . Kinetic 45 | . . 2 12 4 . . . 5 . . . . . . . . . . . . . . 1 . . 11 . 10 Secondary 1 | . . . . . . . . . . . . . . . . . . . . . . . . . . 1 . . Self-Inflicted Damage 199 | . . . 37 9 . . . . 10 . . . . . . 33 . 19 . . . 8 . 74 . 9 . . Shots 14 | . . . 2 1 . . . . 1 . . . . . . 1 . 1 . . . . . 2 . 6 . . Rammed 21 | . 3 . 10 1 3 . . . . . . . . . . . . . . . . 1 . 3 . . . . Targets Rammed 25 | . 3 . 11 2 3 . . . . . . . . . . . . . . . . 1 . 4 1 . . . Kicked . | . . . . . . . . . . . . . . . . . . . . . . . . . . . . . Crushed 4 | . . . 1 1 . . . . . . . . . . . . . . . . . . . 1 1 . . . Highest Temperature 461 | . 188 318 303 285 185 . 180 356 105 24 223 280 316 . 15 75 156 162 318 . 96 109 376 86 332 195 . 461 Average Temperature 74 | . 37 110 66 134 95 . 55 123 55 9 17 80 147 . 7 40 42 62 108 . 46 38 77 19 38 50 . 126 Received Heat Transfer 3400 | . 231 60 447 252 27 . . 371 66 18 54 54 12 . 4 9 15 9 203 . 9 21 155 395 37 384 . 567 Effects 8 | . . 2 . . . . . 2 . . . 2 . . . . . . 1 . . . . . . . . 1 Energy Bleed 5 | . . 1 . . . . . . . . . 2 . . . . . . 1 . . . . . . . . 1 Interference 2 | . . . . . . . . 2 . . . . . . . . . . . . . . . . . . . . Short Circuit 1 | . . 1 . . . . . . . . . . . . . . . . . . . . . . . . . . Siege Activations 7 | . . . . . . . . . . . . . . . . . . . . . . . . 2 1 1 . 3 Total Turns 311 | . . . . . . . . . . . . . . . . . . . . . . . . 43 23 38 . 207 Longest Duration 75 | . . . . . . . . . . . . . . . . . . . . . . . . 27 23 38 . 75 Martial Activations . | . . . . . . . . . . . . . . . . . . . . . . . . . . . . . Shielding Activations . | . . . . . . . . . . . . . . . . . . . . . . . . . . . . . Robots Disrupted 1 | . . . . . . . . . . . . . . . . . . . . . . . . . . 1 . . Combat Hostiles 1 | . . . . . . . . . . . . . . . . . . . . . . . . . . 1 . . Robots Corrupted 20 | . . . . 1 . . . . 1 . . . . . . . . . . . . . . . 2 15 . 1 Combat Hostiles 19 | . . . . . . . . . 1 . . . . . . . . . . . . . . . 2 15 . 1 Parts Fried 30 | . . . . 1 . . . . . . . . . . . . . . . . . . . . 3 23 . 3 Impact Corruptions 4 | . . . . 3 . . . . . . . . . . . . . . . . . . . 1 . . . . Robots Melted 14 | . . . . . . . . 1 1 . . . . . . . . . . . . . . . . 6 1 5 Combat Hostiles 13 | . . . . . . . . 1 1 . . . . . . . . . . . . . . . . 5 1 5 Parts Melted 50 | . . . . . . . 1 2 2 1 . . 1 . . . . 2 4 . . 3 1 2 1 18 1 11 Heat Transferred 13252 | . . 111 . . 185 . 361 1040 211 . 37 37 111 . . 375 74 800 950 . . 148 259 1478 656 4042 200 2177 Parts Sabotaged . | . . . . . . . . . . . . . . . . . . . . . . . . . . . . . Parts Stolen . | . . . . . . . . . . . . . . . . . . . . . . . . . . . . . Parts Stripped 18 | . . . . . . . . . . . . . . . . . . . . . . . . . 18 . . . Power Chain Reactions 1 | . . . . . . . . . . . . . . . . . . . . . . . . . . . . 1 Alert | -11 -10 -10 -9 -9 -9 -9 -6 -6 -6 -6 -6 -5 -5 -5 -5 -4 -4 -4 -4 -4 -3 -3 -3 -2 -2 -2 -1 -1 ------- Run | Yrd Mat Min Mat Sto Rec Scr Fac Ext Cet Arc Hub Fac Upp Upp War Pro Fac Upp Upp Zhi Pro Res Tes Res Qua Frg Acc Com Maximum Alert Level 5 | . . . 1 1 . . . 1 1 1 2 3 . . . . 1 . . . . 2 2 4 3 5 4 4 Low Security (%) 36 | 100 100 100 50 12 100 . 100 95 6 94 45 . . . . . 82 . . . . 15 10 . . 2 . . Level 1 14 | . . . 49 87 . . . 4 93 5 6 46 . . . . 17 . . . . 23 18 16 3 18 . . Level 2 18 | . . . . . . . . . . . 48 50 . . . . . . . . . 60 70 33 90 14 . 3 Level 3 18 | . . . . . . . . . . . . 2 . . . . . . . . . . . 33 5 17 . 71 Level 4 10 | . . . . . . . . . . . . . . . . . . . . . . . . 16 . 15 100 25 Level 5 2 | . . . . . . . . . . . . . . . . . . . . . . . . . . 32 . . High Security . | . . . . . . . . . . . . . . . . . . . . . . . . . . . . . Max Security . | . . . . . . . . . . . . . . . . . . . . . . . . . . . . . Peak Influence 2532 | 10 75 47 397 330 87 . 19 313 342 267 688 709 . . . . 257 . . . . 565 697 1329 744 2532 1536 778 Initial 1515 | . . 4 9 162 87 . . . 170 81 . 319 . . . . 70 . . . . 34 217 351 737 331 1515 742 Average 359 | 1 19 4 180 238 24 . 1 100 255 20 378 435 . . . . 109 . . . . 366 450 714 547 1142 1353 708 Influence Increases 17352 | 15 322 101 1190 751 400 . 62 1054 352 329 1068 620 234 . 380 224 422 558 210 5 60 950 1120 1562 1093 3209 140 921 Destroy 0b10 Robot/C 8780 | . 220 60 760 380 140 . . 500 160 80 440 280 140 . 280 140 220 420 200 . . 340 580 840 700 1420 40 440 Destroy 0b10 Robot/NC 600 | 15 15 10 40 20 . . 10 60 10 45 50 20 5 . 5 . 20 . . 5 . 35 35 95 10 35 20 40 Destroy Leader 1500 | . 42 20 176 146 . . . 64 . . 96 60 20 . . 20 42 30 10 . . 66 66 176 172 190 24 80 Allied During Kill 1606 | . . . . 8 54 . . 226 170 125 411 20 69 . 95 64 61 108 . . . 195 . . . . . . Successful Hack 473 | . 28 11 108 38 25 . 50 28 . . . 30 . . . . 13 . . . . 39 5 14 10 56 14 4 Select Force Hacks 180 | . . . . . 180 . . . . . . . . . . . . . . . . . . . . . . . Disable Machine 1080 | . . . 30 45 . . . 105 . 45 30 45 . . . . . . . . . 75 210 60 90 300 . 45 Anti-Garrison Action 150 | . . . . . . . . . . . . . . . . . . . . . . . . . . 150 . . Destroy Structure 2578 | . 2 . 61 39 1 . 2 41 12 34 41 150 . . . . 36 . . . . 140 194 317 111 1043 42 312 Lose Combat Pursuer 405 | . 15 . 15 75 . . . 30 . . . 15 . . . . 30 . . . 60 60 30 60 . 15 . . Influence Decreases 16119 | 15 311 88 829 911 625 . 62 749 453 533 416 571 702 233 144 348 285 677 340 5 8 615 882 876 1814 1273 1505 849 Entered New Map 4400 | . . 7 15 223 138 . . . 135 123 . 333 260 45 . 236 42 93 25 . . 18 170 274 574 259 1011 419 Time Decay 9413 | 15 291 69 601 648 355 . 62 530 238 410 236 238 422 188 144 92 223 474 255 5 8 497 562 592 770 684 494 310 Lost Part 360 | . 20 . 70 20 . . . 10 20 . 40 . . . . . . . . . . . . 10 20 30 . 120 Lost Ally 903 | . . 12 . 20 132 . . 209 60 . 140 . 20 . . 20 20 110 60 . . 100 . . . . . . Purge Threat 1043 | . . . 143 . . . . . . . . . . . . . . . . . . . 150 . 450 300 . . Squads Dispatched 81 | . 2 . 1 . . . . 2 . . 5 4 . . . . 3 . . . . 11 11 13 5 19 4 1 Investigation 12 | . . . 1 . . . . . . . 1 1 . . . . 1 . . . . 5 . . . 3 . . Extermination 24 | . . . . . . . . . . . 1 1 . . . . 1 . . . . . 5 4 3 6 2 1 Reinforcement 26 | . 2 . . . . . . 2 . . 3 2 . . . . 1 . . . . 6 2 4 1 3 . . Assault 14 | . . . . . . . . . . . . . . . . . . . . . . . 1 4 1 6 2 . Garrison 5 | . . . . . . . . . . . . . . . . . . . . . . . 3 1 . 1 . . Intercept . | . . . . . . . . . . . . . . . . . . . . . . . . . . . . . Searches Triggered . | . . . . . . . . . . . . . . . . . . . . . . . . . . . . . Construction Impeded 6 | . . . . . . . . 1 . . 1 1 . . . . 1 . . . . 1 . . . 1 . . Haulers Reinforced 4 | . . . . . . . . . . . . . . . . . . . . . . 3 . 1 . . . . Active Scanning Responses . | . . . . . . . . . . . . . . . . . . . . . . . . . . . . . Cargo Convoy Interrupts . | . . . . . . . . . . . . . . . . . . . . . . . . . . . . . Stealth | -11 -10 -10 -9 -9 -9 -9 -6 -6 -6 -6 -6 -5 -5 -5 -5 -4 -4 -4 -4 -4 -3 -3 -3 -2 -2 -2 -1 -1 --------- Run | Yrd Mat Min Mat Sto Rec Scr Fac Ext Cet Arc Hub Fac Upp Upp War Pro Fac Upp Upp Zhi Pro Res Tes Res Qua Frg Acc Com Distress Signals 55 | . 3 . 8 3 . . 1 3 2 . 1 . . . 2 . . . . . . 2 1 3 2 3 . 21 Communications Jammed 97 | . . . . . . . . . . . . . . . . . . . . . . . . 70 15 12 . . Distress Signals 89 | . . . . . . . . . . . . . . . . . . . . . . . . 62 15 12 . . Times Spotted 601 | . 24 3 65 26 11 . 9 35 10 26 24 17 7 . 22 10 14 20 14 . 1 24 35 69 42 67 4 22 Peak Tracking Total 11 | . 4 2 7 6 3 . 3 8 5 1 6 6 3 . 9 6 4 6 7 . 7 6 8 11 6 8 1 6 Tactical Retreats 23 | . 1 . 1 5 1 . . 1 . . . 1 . . . . 1 . 1 . 1 3 2 4 . 1 . . Traps | -11 -10 -10 -9 -9 -9 -9 -6 -6 -6 -6 -6 -5 -5 -5 -5 -4 -4 -4 -4 -4 -3 -3 -3 -2 -2 -2 -1 -1 ------- Run | Yrd Mat Min Mat Sto Rec Scr Fac Ext Cet Arc Hub Fac Upp Upp War Pro Fac Upp Upp Zhi Pro Res Tes Res Qua Frg Acc Com Traps Triggered 27 | . 4 . 2 1 . . . 3 . . . 1 . . . . . . . . . . . 5 1 7 . 3 Indirectly . | . . . . . . . . . . . . . . . . . . . . . . . . . . . . . Trap Hack Attempts . | . . . . . . . . . . . . . . . . . . . . . . . . . . . . . Triggered . | . . . . . . . . . . . . . . . . . . . . . . . . . . . . . Disarmed . | . . . . . . . . . . . . . . . . . . . . . . . . . . . . . Reprogrammed . | . . . . . . . . . . . . . . . . . . . . . . . . . . . . . Reused . | . . . . . . . . . . . . . . . . . . . . . . . . . . . . . Traps Extracted . | . . . . . . . . . . . . . . . . . . . . . . . . . . . . . Installed . | . . . . . . . . . . . . . . . . . . . . . . . . . . . . . Triggered . | . . . . . . . . . . . . . . . . . . . . . . . . . . . . . Machines | -11 -10 -10 -9 -9 -9 -9 -6 -6 -6 -6 -6 -5 -5 -5 -5 -4 -4 -4 -4 -4 -3 -3 -3 -2 -2 -2 -1 -1 ---------- Run | Yrd Mat Min Mat Sto Rec Scr Fac Ext Cet Arc Hub Fac Upp Upp War Pro Fac Upp Upp Zhi Pro Res Tes Res Qua Frg Acc Com Machines Disabled 103 | . . . 3 3 . . . 7 . 3 2 3 . . 1 . . 2 1 1 . 5 19 5 6 39 . 3 Max in Single Turn 2 | . . . 1 1 . . . 1 . 1 1 1 . . 1 . . . 1 1 . 1 2 1 1 2 . 1 Garrison Access 7 | . . . . 1 . . 1 . . . 1 . . . . . . . . . . 1 . 2 . 1 . . Network Hub 1 | . . . . . . . . . . . 1 . . . . . . . . . . . . . . . . . Machines Repaired . | . . . . . . . . . . . . . . . . . . . . . . . . . . . . . Machines Dismantled 7 | . . . . . . . . 6 . . 1 . . . . . . . . . . . . . . . . . Machines Sabotaged . | . . . . . . . . . . . . . . . . . . . . . . . . . . . . . Overloaded Fab Kills . | . . . . . . . . . . . . . . . . . . . . . . . . . . . . . Hacking | -11 -10 -10 -9 -9 -9 -9 -6 -6 -6 -6 -6 -5 -5 -5 -5 -4 -4 -4 -4 -4 -3 -3 -3 -2 -2 -2 -1 -1 --------- Run | Yrd Mat Min Mat Sto Rec Scr Fac Ext Cet Arc Hub Fac Upp Upp War Pro Fac Upp Upp Zhi Pro Res Tes Res Qua Frg Acc Com Machines Accessed 127 | . 8 1 12 16 12 2 8 15 . . 4 4 . . 2 . 2 . 1 4 . 4 8 6 7 6 4 1 Terminals 84 | . 6 1 8 11 6 . 5 15 . . 3 2 . . . . 1 . . . . 1 6 3 7 4 4 1 Fabricators 2 | . . . . . . . 1 . . . . . . . . . . . . . . . 1 . . . . . Repair Stations 8 | . 1 . 2 2 . . 1 . . . . 1 . . . . . . . . . . . 1 . . . . Recycling Units 14 | . 1 . 1 2 6 . . . . . . 1 . . . . 1 . . . . 2 . . . . . . Scanalyzers 2 | . . . 1 . . . . . . . . . . . . . . . . . . . . . . 1 . . Garrison Access 8 | . . . . 1 . . 1 . . . 1 . . . . . . . . . . 1 1 2 . 1 . . Total Hacks 325 | . 22 4 40 41 27 2 16 24 . . 4 17 . . 7 . 11 . 1 17 . 11 19 12 23 19 7 1 Successful 159 | . 10 2 28 26 15 2 7 4 . . 2 6 . . 7 . 4 . 1 17 . 5 3 4 5 7 3 1 Failed 166 | . 12 2 12 15 12 . 9 20 . . 2 11 . . . . 7 . . . . 6 16 8 18 12 4 . Catastrophic 49 | . 2 . 1 4 1 . 2 9 . . 1 5 . . . . 5 . . . . 1 6 2 4 4 2 . Database Lockouts . | . . . . . . . . . . . . . . . . . . . . . . . . . . . . . Manual 118 | . 6 2 15 11 19 . 5 3 1 . 1 9 . . . . 9 . . . . 6 3 2 11 12 3 . Terminals 227 | . 18 4 31 29 19 . 12 24 . . 3 12 . . . . 10 . . . . 3 13 6 23 12 7 1 Fabricators 4 | . . . . . . . 1 . . . . . . . . . . . . . . . 3 . . . . . Repair Stations 21 | . 2 . 6 5 . . 2 . . . . 3 . . . . . . . . . . . 3 . . . . Recycling Units 26 | . 2 . 1 6 8 . . . . . . 2 . . . . 1 . . . . 6 . . . . . . Scanalyzers 5 | . . . 2 . . . . . . . . . . . . . . . . . . . . . . 3 . . Garrison Access 15 | . . . . 1 . . 1 . . . 1 . . . . . . . . . . 2 3 3 . 4 . . Terminal Hacks 93 | . 8 2 12 13 3 2 3 4 . . . 3 . . 7 . 3 . 1 17 . 1 2 . 5 3 3 1 Record 7 | . . . . . . 2 . . . . . . . . . . . . . 5 . . . . . . . . Part Schematic 7 | . . . . 1 . . 2 . . . . . . . . . . . . 4 . . . . . . . . Robot Analysis 9 | . 3 1 . 1 . . . . . . . . . . . . . . . 4 . . . . . . . . Prototype ID Bank 19 | . 1 . 4 1 2 . . . . . . . . . 6 . 1 . . 4 . . . . . . . . Open Door 14 | . . . . 3 . . . 4 . . . . . . 1 . . . 1 . . . 1 . . . 3 1 Branch Access Points 4 | . . . . . . . 1 . . . . 1 . . . . 1 . . . . 1 . . . . . . Terminal Index 1 | . . . 1 . . . . . . . . . . . . . . . . . . . . . . . . . Recycling Unit Index 1 | . . . . . . . . . . . . 1 . . . . . . . . . . . . . . . . Scanalyzer Index 1 | . . . 1 . . . . . . . . . . . . . . . . . . . . . . . . . Alert Level 1 | . . . . 1 . . . . . . . . . . . . . . . . . . . . . . . . Unreport Threat 7 | . . . 1 . . . . . . . . . . . . . . . . . . . 1 . 3 2 . . Locate Traps 5 | . 1 . 1 1 . . . . . . . 1 . . . . . . . . . . . . 1 . . . Maintenance Status 2 | . . . 1 1 . . . . . . . . . . . . . . . . . . . . . . . . Security Status 1 | . . . 1 . . . . . . . . . . . . . . . . . . . . . . . . . Recall Extermination 1 | . . . . . . . . . . . . . . . . . . . . . . . . . 1 . . . Hauler Manifests 5 | . 1 . 1 2 . . . . . . . . . . . . 1 . . . . . . . . . . . Registered Components 2 | . 1 . 1 . . . . . . . . . . . . . . . . . . . . . . . . . Zone Layout 5 | . 1 1 . 2 1 . . . . . . . . . . . . . . . . . . . . . . . Proto ID Catalog 1 | . . . . . . . . . . . . . . . . . . . . . . . . . . 1 . . Fabricator Hacks 1 | . . . . . . . . . . . . . . . . . . . . . . . 1 . . . . . Network Status 1 | . . . . . . . . . . . . . . . . . . . . . . . 1 . . . . . Repair Station Hacks 15 | . 2 . 5 3 . . 2 . . . . 2 . . . . . . . . . . . 1 . . . . Scan Component 9 | . 1 . 3 2 . . 1 . . . . 1 . . . . . . . . . . . 1 . . . . Repair 6 | . 1 . 2 1 . . 1 . . . . 1 . . . . . . . . . . . . . . . . Recycling Unit Hacks 3 | . . . 1 2 . . . . . . . . . . . . . . . . . . . . . . . . Retrieve Components 3 | . . . 1 2 . . . . . . . . . . . . . . . . . . . . . . . . Scanalyzer 2 | . . . 2 . . . . . . . . . . . . . . . . . . . . . . . . . Insert Component 1 | . . . 1 . . . . . . . . . . . . . . . . . . . . . . . . . Analyze 1 | . . . 1 . . . . . . . . . . . . . . . . . . . . . . . . . Garrison Access Hacks 6 | . . . . 1 . . 1 . . . 1 . . . . . . . . . . 1 . 2 . . . . Seal Access 6 | . . . . 1 . . 1 . . . 1 . . . . . . . . . . 1 . 2 . . . . Unauthorized Hacks 38 | . . . 8 7 12 . 1 . . . 1 1 . . . . 1 . . . . 2 . 1 . 4 . . Terminals 25 | . . . 8 5 6 . 1 . . . 1 . . . . . . . . . . . . 1 . 3 . . Track 1 | . . . . . . . . . . . . . . . . . . . . . . . . . . 1 . . Botnet 7 | . . . 2 1 1 . 1 . . . . . . . . . . . . . . . . 1 . 1 . . Operators 2 | . . . 1 . . . . . . . . . . . . . . . . . . . . . . 1 . . Skim 14 | . . . 5 4 5 . . . . . . . . . . . . . . . . . . . . . . . Sabotage 1 | . . . . . . . . . . . 1 . . . . . . . . . . . . . . . . . Fabricators . | . . . . . . . . . . . . . . . . . . . . . . . . . . . . . Repair Stations . | . . . . . . . . . . . . . . . . . . . . . . . . . . . . . Recycling Units 12 | . . . . 2 6 . . . . . . 1 . . . . 1 . . . . 2 . . . . . . Recyclers 1 | . . . . 1 . . . . . . . . . . . . . . . . . . . . . . . . Mask 1 | . . . . 1 . . . . . . . . . . . . . . . . . . . . . . . . Tunnel 6 | . . . . . 6 . . . . . . . . . . . . . . . . . . . . . . . Scrapoids 4 | . . . . . . . . . . . . 1 . . . . 1 . . . . 2 . . . . . . Scanalyzers 1 | . . . . . . . . . . . . . . . . . . . . . . . . . . 1 . . Researchers 1 | . . . . . . . . . . . . . . . . . . . . . . . . . . 1 . . Garrison Access . | . . . . . . . . . . . . . . . . . . . . . . . . . . . . . Data Cores Recovered 2 | . . . . . . . . . . . . . . . . . . . . . . . . 1 . . . 1 Used . | . . . . . . . . . . . . . . . . . . . . . . . . . . . . . Hacking Detections 97 | . 8 1 11 13 8 . 6 14 1 . 2 4 . . . . 1 . . . . 3 7 4 7 5 1 1 Full Trace Events 1 | . . . . . . . . . . . . . . . . . . . . . . . . . . 1 . . Feedback Events . | . . . . . . . . . . . . . . . . . . . . . . . . . . . . . Feedback Blocked . | . . . . . . . . . . . . . . . . . . . . . . . . . . . . . Robot Schematics Acquired . | . . . . . . . . . . . . . . . . . . . . . . . . . . . . . Robots Built . | . . . . . . . . . . . . . . . . . . . . . . . . . . . . . Authchips . | . . . . . . . . . . . . . . . . . . . . . . . . . . . . . Time . | . . . . . . . . . . . . . . . . . . . . . . . . . . . . . Total Robot Build Rating . | . . . . . . . . . . . . . . . . . . . . . . . . . . . . . Part Schematics Acquired 15 | . . . 1 1 . . 2 . . . . . . . . . . . . 4 . . 5 . . 2 . . Parts Built . | . . . . . . . . . . . . . . . . . . . . . . . . . . . . . Authchips . | . . . . . . . . . . . . . . . . . . . . . . . . . . . . . Time . | . . . . . . . . . . . . . . . . . . . . . . . . . . . . . Total Part Build Rating . | . . . . . . . . . . . . . . . . . . . . . . . . . . . . . Parts Repaired 6 | . 1 . 2 1 . . 1 . . . . 1 . . . . . . . . . . . . . . . . Time 196 | . 26 . 64 19 . . 38 . . . . 49 . . . . . . . . . . . . . . . . Parts Recycled . | . . . . . . . . . . . . . . . . . . . . . . . . . . . . . Recycled Matter . | . . . . . . . . . . . . . . . . . . . . . . . . . . . . . Retrieved Matter . | . . . . . . . . . . . . . . . . . . . . . . . . . . . . . Retrieved Components 24 | . . . 9 15 . . . . . . . . . . . . . . . . . . . . . . . . Parts Scanalyzed 1 | . . . 1 . . . . . . . . . . . . . . . . . . . . . . . . . Part Schematics Acquired 1 | . . . 1 . . . . . . . . . . . . . . . . . . . . . . . . . Parts Damaged . | . . . . . . . . . . . . . . . . . . . . . . . . . . . . . Bothacking | -11 -10 -10 -9 -9 -9 -9 -6 -6 -6 -6 -6 -5 -5 -5 -5 -4 -4 -4 -4 -4 -3 -3 -3 -2 -2 -2 -1 -1 ------------ Run | Yrd Mat Min Mat Sto Rec Scr Fac Ext Cet Arc Hub Fac Upp Upp War Pro Fac Upp Upp Zhi Pro Res Tes Res Qua Frg Acc Com Used RIF Installer . | . . . . . . . . . . . . . . . . . . . . . . . . . . . . . Robots Hacked . | . . . . . . . . . . . . . . . . . . . . . . . . . . . . . Non-combat . | . . . . . . . . . . . . . . . . . . . . . . . . . . . . . Combat . | . . . . . . . . . . . . . . . . . . . . . . . . . . . . . Robot Hacks Applied . | . . . . . . . . . . . . . . . . . . . . . . . . . . . . . Relay Couplers Released 1 | . . . . . . . . . . . . . . . . . . . . . . . . . . 1 . . Machine Destruction 1 | . . . . . . . . . . . . . . . . . . . . . . . . . . 1 . . Fabnet Peak Effective % . | . . . . . . . . . . . . . . . . . . . . . . . . . . . . . Robots Rewired 24 | . . . . . 9 . . 7 . . . . . . 5 . . 1 2 . . . . . . . . . Allies Hacked 1 | . . . . . . . . . . . . . 1 . . . . . . . . . . . . . . . Hacks Repelled . | . . . . . . . . . . . . . . . . . . . . . . . . . . . . . Allies | -11 -10 -10 -9 -9 -9 -9 -6 -6 -6 -6 -6 -5 -5 -5 -5 -4 -4 -4 -4 -4 -3 -3 -3 -2 -2 -2 -1 -1 -------- Run | Yrd Mat Min Mat Sto Rec Scr Fac Ext Cet Arc Hub Fac Upp Upp War Pro Fac Upp Upp Zhi Pro Res Tes Res Qua Frg Acc Com Total Allies 79 | . . 1 . 10 9 . . 26 5 . . 5 . . 5 . 5 1 2 . . 10 . . . . . . Largest Group 16 | . . 1 . 10 11 . . 15 16 15 10 5 5 . 5 5 6 6 2 . . 8 . . . . . . Highest-Rated Group 978 | . . 31 . 88 121 . . 637 978 827 620 235 235 . 263 263 305 302 94 . . 496 . . . . . . Highest-Rated Ally 159 | . . 31 . 16 16 . . 159 159 96 96 47 47 . 68 68 68 64 47 . . 67 . . . . . . Total Orders 4 | . . . . . . . . . 2 2 . . . . . . . . . . . . . . . . . . STAY 2 | . . . . . . . . . 1 1 . . . . . . . . . . . . . . . . . . FOLLOW 2 | . . . . . . . . . 1 1 . . . . . . . . . . . . . . . . . . Ally Attacks 509 | . . 2 . 2 41 . . 85 46 22 82 . 34 . 36 12 18 42 9 . . 78 . . . . . . Total Damage 13412 | . . 44 . 22 428 . . 2016 982 499 2920 . 645 . 1662 573 833 1114 270 . . 1404 . . . . . . Kills 92 | . . 1 . 1 3 . . 12 6 3 23 . 4 . 8 4 8 8 1 . . 10 . . . . . . Allies Corrupted 3 | . . . . . . . . . . . 2 . . . . . . . . . . 1 . . . . . . Allies Melted . | . . . . . . . . . . . . . . . . . . . . . . . . . . . . . Intel | -11 -10 -10 -9 -9 -9 -9 -6 -6 -6 -6 -6 -5 -5 -5 -5 -4 -4 -4 -4 -4 -3 -3 -3 -2 -2 -2 -1 -1 ------- Run | Yrd Mat Min Mat Sto Rec Scr Fac Ext Cet Arc Hub Fac Upp Upp War Pro Fac Upp Upp Zhi Pro Res Tes Res Qua Frg Acc Com Active Infowar (turns) 25267 | 23 1167 771 658 175 . . 704 56 . . . 365 826 655 786 531 421 1017 951 221 617 781 1472 1838 4308 2419 1312 3193 Optics 479 | . . . . . . . . . . . . . . . 1 . . . . . . . . . . . . 478 Sensors 3418 | . . . . . . . . . . . . . . . . . . . . . . 17 . . 2521 880 . . Terrain 2378 | . . . . . . . . . . . . . . . . . . . . . . . . . . . 2 2376 Seismic 13744 | 23 1167 771 658 175 . . 704 56 . . . 365 826 655 784 531 421 986 951 221 575 161 713 1489 1512 . . . Cloaking 8058 | . . . . . . . . . . . . . . . 1 . 108 124 . . 615 764 191 1787 586 2215 1312 355 Jamming 3838 | . . . . . . . . . . . . . . . . . . . . . . . 839 1496 1218 285 . . Robot Analysis Total 9 | . 3 1 . 1 . . . . . . . . . . . . . . . 4 . . . . . . . . Derelict Logs Recovered 14 | . . 2 . . . . . . . . . . 3 2 . 3 . 2 2 . . . . . . . . . Drone Launches . | . . . . . . . . . . . . . . . . . . . . . . . . . . . . . Drone Recoveries . | . . . . . . . . . . . . . . . . . . . . . . . . . . . . . Exploration | -11 -10 -10 -9 -9 -9 -9 -6 -6 -6 -6 -6 -5 -5 -5 -5 -4 -4 -4 -4 -4 -3 -3 -3 -2 -2 -2 -1 -1 ------------- Run | Yrd Mat Min Mat Sto Rec Scr Fac Ext Cet Arc Hub Fac Upp Upp War Pro Fac Upp Upp Zhi Pro Res Tes Res Qua Frg Acc Com Turns Passed 54502 | 151 1627 803 2594 2376 1472 4734 706 1599 501 7096 530 511 1037 655 1314 573 495 1201 1045 241 617 1378 1677 1867 4476 2725 1312 9189 Spaces Moved 24363 | 71 911 368 1001 846 560 2378 375 835 242 610 297 320 983 565 831 535 369 975 851 196 547 621 862 865 1647 1035 199 4468 Core 284 | 15 . . . . . . . . . 241 . . . . . . . . . . . . . . . . . 28 Treads 9058 | 56 517 . 792 846 560 1322 . . 1 . . . . . . . . . . . . . . 590 1647 1035 199 1493 Legs 2947 | . . . . . . . . . . . . . . . . . . . . . . . . . . . . 2947 Wheels 11997 | . 394 368 209 . . 979 375 835 241 369 297 320 983 565 831 535 369 975 851 196 547 621 862 275 . . . . Hover 77 | . . . . . . 77 . . . . . . . . . . . . . . . . . . . . . . Flight . | . . . . . . . . . . . . . . . . . . . . . . . . . . . . . Fastest Speed 46 | 50 95 155 105 240 240 46 120 130 128 128 128 100 100 100 100 100 110 110 110 100 110 110 110 110 160 160 160 97 Average Speed 170 | 155 148 155 214 240 240 184 133 131 129 1124 128 100 100 100 100 100 110 110 110 100 110 110 110 144 160 165 160 143 Slowest Speed 2650 | 200 320 155 320 240 240 480 140 140 240 2650 140 100 100 100 100 100 110 110 110 110 110 110 110 160 160 240 160 2400 Overloaded Moves . | . . . . . . . . . . . . . . . . . . . . . . . . . . . . . Propulsion Burnouts . | . . . . . . . . . . . . . . . . . . . . . . . . . . . . . Robots Hopped . | . . . . . . . . . . . . . . . . . . . . . . . . . . . . . Potential Cave-ins 172 | . . . . . . . . . . . . . . . . . . . . . . . 4 2 . 35 . 131 Cave-ins Triggered 15 | . . . . . . . . . . . . . . . . . . . . . . . . . . 1 . 14 Teleports 2 | . . . . . . . . . . . . . . . . . . . . . . . . 1 . 1 . . Exploration Rate (%) 62 | 5 95 59 97 96 95 91 8 84 59 98 28 11 98 70 89 73 9 98 84 60 63 22 87 39 94 31 6 71 Regions Visited 28 Branch Regions 20 Pre-discovered Areas 15 | . . 1 2 . 7 . . . . . . . . . . 1 . . 1 3 . . . . . . . . Known Exits Taken 9 | . . . 1 . 1 . 1 . . . . 1 . . . . 1 . . . 1 1 . . 1 1 . . Unknown Exits Taken 19 | 1 1 1 . 1 . 1 . 1 1 1 1 . 1 1 1 1 . 1 1 1 . . 1 1 . . 1 . Scrap Searched 26 | . . 1 . . . 9 . . . . . . 4 2 . 1 . 2 4 . 3 . . . . . . . Spaces Dug 963 | . 1 . 3 10 . . 2 1 . . 4 7 . . . 19 5 . . . 2 5 22 31 12 76 1 762 Terrain Destroyed 2858 | . 1 . 56 38 1 . 2 66 . 45 60 92 10 . 6 37 23 42 36 . 5 51 148 147 38 241 17 1696 Melee 11 | . . . . 10 . . . . . . . . . . . . . . . . . . . . . . 1 . Projectile 1400 | . 1 . 3 3 1 . 2 23 . 45 60 47 10 . 6 . 23 13 36 . 5 51 145 73 19 239 16 579 AOE 1417 | . . . 53 25 . . . 43 . . . 45 . . . 37 . 29 . . . . . 68 . . . 1117 Terrain Rammed . | . . . . . . . . . . . . . . . . . . . . . . . . . . . . . Walls Destroyed . | . . . . . . . . . . . . . . . . . . . . . . . . . . . . . Machines Disabled . | . . . . . . . . . . . . . . . . . . . . . . . . . . . . . Actions | -11 -10 -10 -9 -9 -9 -9 -6 -6 -6 -6 -6 -5 -5 -5 -5 -4 -4 -4 -4 -4 -3 -3 -3 -2 -2 -2 -1 -1 --------- Run | Yrd Mat Min Mat Sto Rec Scr Fac Ext Cet Arc Hub Fac Upp Upp War Pro Fac Upp Upp Zhi Pro Res Tes Res Qua Frg Acc Com Total 34791 | 92 1083 582 1253 1072 665 2743 573 1134 395 774 364 432 1013 654 1281 563 425 1067 919 236 555 1265 1455 1255 3343 1644 1179 6775 Wait 7163 | . 64 196 56 99 5 259 172 96 46 116 7 43 2 87 334 12 13 34 . . . 567 400 122 1487 114 959 1873 Move 24326 | 70 910 367 1000 845 559 2377 374 834 241 609 296 319 982 564 830 534 368 974 850 195 546 621 861 864 1646 1034 198 4458 Hop . | . . . . . . . . . . . . . . . . . . . . . . . . . . . . . Pick Up 295 | 4 21 3 30 6 3 37 8 7 22 3 6 5 4 1 6 . 5 4 2 5 . 7 12 15 14 41 . 24 Fast Attach 132 | 7 2 . 5 3 . 16 3 4 8 4 1 . 1 . 6 1 . 1 . 9 . 6 3 7 14 13 5 13 Attach 103 | . 4 . 10 2 . 2 3 5 8 1 3 2 . . 2 . 2 1 . 2 1 1 . 13 6 17 2 16 Detach 49 | . 3 . . . . 6 . . . 4 1 . 1 . 1 . . 1 . 1 . 2 1 6 5 5 3 9 Swap 456 | 1 6 3 27 30 7 5 1 13 13 2 11 18 11 1 10 10 13 23 10 1 3 10 44 44 33 84 . 22 Drop 314 | . 6 3 20 19 3 39 5 6 29 5 4 1 3 1 12 1 4 4 2 12 . 9 16 14 21 41 4 30 Fire 1519 | 10 64 10 94 54 9 . 7 53 12 30 32 36 8 . 13 5 20 16 22 11 5 42 118 150 115 289 4 290 Melee 53 | . . . . 12 . . . . 16 . . . . . . . . . . . . . . . 1 6 4 14 Ram . | . . . . . . . . . . . . . . . . . . . . . . . . . . . . . Kick . | . . . . . . . . . . . . . . . . . . . . . . . . . . . . . Crush 24 | . 3 . 11 2 3 . . . . . . . . . . . . . . . . . . 4 1 . . . Escape Stasis 51 | . . . . . . . . 16 . . . 8 . . . . . . . . . . . 16 . . . 11 Rewire 252 | . . . . . 76 . . 52 . . . . . . 67 . . 9 33 . . . . . . . . 15 Trap . | . . . . . . . . . . . . . . . . . . . . . . . . . . . . . Miscellaneous 54 | . . . . . . 2 . 48 . . 3 . 1 . . . . . . . . . . . . . . . Route ------- -11/Scrapyard -10/Materials (discovered 5 exits: *Mat x3 / *Min x2) -10/Mines (discovered 4 exits: *Mat x2 / [*Exi] / [*Sub]) -9/Materials (discovered 7 exits: *Mat x3 / *Min x2 / *Sto x2) -9/Storage (discovered 2 exits: *Mat / *Rec) -9/Recycling (discovered 2 exits: [*Fac] / *Scr) -9/Scraptown (discovered 2 exits: *Fac x2) -6/Factory (discovered 4 exits: Low x2 / *Ext x2) -6/Extension (discovered 2 exits: *Fac / *Cet) -6/Cetus (discovered 2 exits: *Fac / [*Arc]) -6/Archives (discovered 3 exits: *Fac / *Hub x2) -6/Hub_04(d) (discovered 2 exits: *Fac x2) -5/Factory (discovered 2 exits: *Upp x2) -5/Upper Caves -5/Upper Caves (discovered 2 exits: *Fac / *War) -5/Warlord -4/Proximity Caves -4/Factory (discovered 3 exits: Res / *Upp x2) -4/Upper Caves -4/Upper Caves (discovered 2 exits: *Res / *Zhi) -4/Zhirov -3/Proximity Caves -3/Research (discovered 3 exits: Arm / *Tes x2) -3/Testing -2/Research -2/Quarantine (discovered 3 exits: *Acc / *Sec / *Frg) -2/Protoforge -1/Access -1/Command (discovered 2 exits: [*Sur x2]) To Fleet Rendezvous History --------- Turn | Location | Event 22 | -11/Scrapyard | Discovered new exit (range 16) 152 | -11/Scrapyard | Entered Materials 316 | -10/Materials | Build established: Mutant 388 | -10/Materials | Discovered new exit (range 12) 622 | -10/Materials | Discovered new exit (range 8) 870 | -10/Materials | Discovered new exit (range 16) 1115 | -10/Materials | Repaired Lgt. Treads 1299 | -10/Materials | Discovered new exit (range 9) 1316 | -10/Materials | Discovered new exit (range 15) 1779 | -10/Materials | Entered Mines 1840 | -10/Mines | Learned location of Zion (-6) 1854 | -10/Mines | A weapon hastily lodged in a ceiling crevice suddenly fell to the ground 1868 | -10/Mines | Deemed a non-threat by the Exiles lab entrance 1868 | -10/Mines | Discovered new exit (range 5) 2056 | -10/Mines | Assembled infested the area 2062 | -10/Mines | Discovered new exit (range 6) 2390 | -10/Mines | Discovered new exit (range 12) 2453 | -10/Mines | Core integrity fell below 50% 2493 | -10/Mines | Discovered new exit (range 13) 2501 | -10/Mines | Learned 2 Materials zone layouts 2502 | -10/Mines | Met a Derelict testing a Signal Generator 2559 | -10/Mines | Core integrity fell below 20% 2582 | -10/Mines | Entered Materials 2582 | -9/Materials | Evolved 2 slots: Propulsion x1, Utility x1 2583 | -9/Materials | Identified exit to Mines 2583 | -9/Materials | Identified exit to Storage 2930 | -9/Materials | Destroyed 7 combat bots 3019 | -9/Materials | Discovered new exit (range 16) 3078 | -9/Materials | Repaired Imp. Light Armor Plating 3527 | -9/Materials | Discovered new exit (range 8) 3852 | -9/Materials | Identified exit to Materials 3903 | -9/Materials | Learned 4 Materials zone layouts 3972 | -9/Materials | Learned location of 3 exits from Materials 3993 | -9/Materials | Learned 2 Materials zone layouts 4002 | -9/Materials | Learned 2 Materials zone layouts 4056 | -9/Materials | Learned location of Recycling (-9) 4227 | -9/Materials | Repaired Lgt. Treads 4521 | -9/Materials | Build established: Scavenger-Mutant 5176 | -9/Materials | Entered Storage 6058 | -9/Storage | Repaired Imp. Light Armor Plating 6659 | -9/Storage | Core integrity fell below 50% 6883 | -9/Storage | Assisted by bots powering up and referring to "LRC-V3" 6969 | -9/Storage | Met 01-MTF 7187 | -9/Storage | Build established: Commander-Mutant 7467 | -9/Storage | Discovered new exit (range 6) 7552 | -9/Storage | Entered Recycling 7552 | -9/Recycling | Accompanied by 10 allies (01-MTF) 7644 | -9/Recycling | Lost 6 allies 8173 | -9/Recycling | Discovered new exit (range 6) 8576 | -9/Recycling | Learned Materials recycling unit intel 8617 | -9/Recycling | Learned location of 2 exits from Materials 8646 | -9/Recycling | Learned location of 2 exits from Materials 8666 | -9/Recycling | Learned 2 Materials zone layouts 8676 | -9/Recycling | Learned Storage non-interactive machine intel 8677 | -9/Recycling | Identified exit to Scraptown 8705 | -9/Recycling | Loaded intel: 6 recycling unit locations 8732 | -9/Recycling | Scanned before Scraplab entrance 8769 | -9/Recycling | Found Prototype Energy Gun 8770 | -9/Recycling | Identified KN-7UR's Autopenetrator 8783 | -9/Recycling | Lost 9 allies 8837 | -9/Recycling | Entered Scraplab 9024 | -9/Recycling | Entered Scraptown 9024 | -9/Scraptown | System corruption cleaned by C-Scrubber 9060 | -9/Scraptown | Build established: Scavenger-Mutant 9372 | -9/Scraptown | Discovered new exit (range 13) 9677 | -9/Scraptown | Visited Spacefarers 9708 | -9/Scraptown | Visited Shadow of the Wyrm 9725 | -9/Scraptown | Visited SPCMW 9768 | -9/Scraptown | Visited CPS Storage 9802 | -9/Scraptown | Visited UFD Registry 9879 | -9/Scraptown | Visited Cave Peace 9927 | -9/Scraptown | Visited Assassins FH 10322 | -9/Scraptown | Visited Bundlers 10500 | -9/Scraptown | Registered with UFD as "Plasmaframe" 10574 | -9/Scraptown | Visited Chapter 10 10620 | -9/Scraptown | Visited Junk Cannon Lab 10644 | -9/Scraptown | Found Prototype Special Weapon 10644 | -9/Scraptown | Identified Junk Cannon 10734 | -9/Scraptown | Visited Scrap Suit Storage 10767 | -9/Scraptown | Visited Modified Component R&D 10820 | -9/Scraptown | Visited Scrapoid Pod Storage 10859 | -9/Scraptown | Visited Derelict Rescue Squad 10914 | -9/Scraptown | Visited Curators Association 10969 | -9/Scraptown | Visited DA-N13 Charitable Foundation 10991 | -9/Scraptown | Found DCF Scrap (29 items) 11034 | -9/Scraptown | Visited A0-MCA Data Center 11072 | -9/Scraptown | Visited LU-1G1's Boring Crew 11626 | -9/Scraptown | Given an S rating by A0-MCA 11748 | -9/Scraptown | Found Prototype Processor 11761 | -9/Scraptown | Found A0-MCA's Component Scanner 11864 | -9/Scraptown | Build established: Mutant 12205 | -9/Scraptown | Found Scrap Suit 12341 | -9/Scraptown | Found Scrapoid Pod 12368 | -9/Scraptown | Found DRS Beacon 12602 | -9/Scraptown | Build established: Scrapper 12935 | -9/Scraptown | Discovered new exit (range 3) 13376 | -9/Scraptown | Found Scrap Suit 13698 | -9/Scraptown | Met Optimus 13698 | -9/Scraptown | Accepted into 0bPrime 13758 | -9/Scraptown | Entered Factory 13758 | -6/Factory | Evolved 6 slots: Power x1, Utility x3, Weapon x2 13865 | -6/Factory | Repaired Hvy. Armor Plating 13931 | -6/Factory | Identified exit to Lower Caves 13931 | -6/Factory | Identified exit to Extension 14163 | -6/Factory | Found Prototype Launcher 14352 | -6/Factory | Build established: Tank 14464 | -6/Factory | Entered Extension 14833 | -6/Extension | Rescued a captive Derelict 14873 | -6/Extension | Rescued a captive Derelict 14914 | -6/Extension | Disrupted transfer network 14958 | -6/Extension | Rescued a captive Derelict 14958 | -6/Extension | Rescued a captive Derelict 15004 | -6/Extension | Rescued a captive Derelict 15059 | -6/Extension | Rescued a captive Derelict 15075 | -6/Extension | Rescued a captive Derelict 15075 | -6/Extension | Rescued a captive Derelict 15235 | -6/Extension | Spotted B-75 Beast 15255 | -6/Extension | Allies destroyed B-75 Beast 15262 | -6/Extension | Spotted B-75 Beast 15280 | -6/Extension | Destroyed B-75 Beast 15308 | -6/Extension | Lost 3 parts (2u1w) 15332 | -6/Extension | Lost 10 allies 15560 | -6/Extension | Build established: Scrapper 15574 | -6/Extension | Rescued a captive Derelict 15612 | -6/Extension | Rescued A7 15775 | -6/Extension | Rescued a captive Derelict 15776 | -6/Extension | Rescued a captive Derelict 15821 | -6/Extension | Rescued a captive Derelict 15821 | -6/Extension | Rescued a captive Derelict 15998 | -6/Extension | Discovered new exit (range 10) 16001 | -6/Extension | Discovered new exit (range 6) 16018 | -6/Extension | Scrapoid Pod released 06E05-D (x5) 16063 | -6/Extension | Entered Cetus 16063 | -6/Cetus | Accompanied by 14 allies (A7) 16065 | -6/Cetus | Identified Scatter Rocket Array 16068 | -6/Cetus | Acquired a Cetus Manufacturing Module code from A7 16083 | -6/Cetus | Spotted Cetus Guard 16083 | -6/Cetus | Spotted Cetus Guard 16085 | -6/Cetus | Spotted Cetus Guard 16086 | -6/Cetus | Spotted Cetus Guard 16096 | -6/Cetus | Destroyed Cetus Guard 16096 | -6/Cetus | Allies destroyed Cetus Guard 16100 | -6/Cetus | Allies destroyed Cetus Guard 16102 | -6/Cetus | Allies destroyed Cetus Guard 16199 | -6/Cetus | Started Cetus Manufacturing Module 16220 | -6/Cetus | Discovered new exit (range 15) 16224 | -6/Cetus | Manufactured an Enhanced Grunt 16247 | -6/Cetus | Spotted Cetus Guard 16247 | -6/Cetus | Spotted Cetus Guard 16249 | -6/Cetus | Manufactured an Enhanced Grunt 16250 | -6/Cetus | Spotted Cetus Guard 16250 | -6/Cetus | Spotted Cetus Guard 16256 | -6/Cetus | Allies destroyed Cetus Guard 16258 | -6/Cetus | Destroyed Cetus Guard 16259 | -6/Cetus | Allies destroyed Cetus Guard 16264 | -6/Cetus | Allies destroyed Cetus Guard 16268 | -6/Cetus | Discovered new exit (range 16) 16274 | -6/Cetus | Manufactured an Enhanced Grunt 16275 | -6/Cetus | Met Revision 17 16299 | -6/Cetus | Manufactured an Enhanced Grunt 16324 | -6/Cetus | Manufactured an Enhanced Grunt 16390 | -6/Cetus | Found Prototype Protection 16391 | -6/Cetus | Identified Med. Regenerative Plating 16413 | -6/Cetus | Murdered A7 16415 | -6/Cetus | Extracted ID and sensor layout for unrecognized location from A7's data core 16564 | -6/Cetus | Entered Archives 16564 | -6/Archives | Accompanied by 15 allies 16601 | -6/Archives | Found Scrap Suit 16615 | -6/Archives | Discovered new exit (range 16) 16638 | -6/Archives | Discovered new exit (range 15) 16661 | -6/Archives | Discovered new exit (range 15) 16719 | -6/Archives | Build established: Scavenger-Tank 17146 | -6/Archives | Build established: Scavenger-Gunner 17486 | -6/Archives | Build established: Scavenger-Tank 23660 | -6/Archives | Entered Hub_04(d) 23660 | -6/Hub_04(d) | Accompanied by 10 allies 23850 | -6/Hub_04(d) | Discovered new exit (range 5) 24000 | -6/Hub_04(d) | Discovered new exit (range 7) 24014 | -6/Hub_04(d) | Build established: Scavenger-Gunner 24024 | -6/Hub_04(d) | Network Hub disabled 24034 | -6/Hub_04(d) | Spotted Lightning 24034 | -6/Hub_04(d) | Spotted Lightning 24034 | -6/Hub_04(d) | Spotted Lightning 24069 | -6/Hub_04(d) | Destroyed Lightning 24073 | -6/Hub_04(d) | System corruption reached 10% 24080 | -6/Hub_04(d) | Destroyed Lightning 24095 | -6/Hub_04(d) | Lost 5 allies 24109 | -6/Hub_04(d) | Destroyed Lightning 24120 | -6/Hub_04(d) | Found Prototype Processor 24126 | -6/Hub_04(d) | Found Prototype Device 24127 | -6/Hub_04(d) | Identified Exp. Phase Shifter 24132 | -6/Hub_04(d) | Core integrity fell below 50% 24167 | -6/Hub_04(d) | Found Prototype Device 24168 | -6/Hub_04(d) | Identified Exp. EM Shield 24184 | -6/Hub_04(d) | Found Prototype Processor 24190 | -6/Hub_04(d) | Spotted Lightning 24190 | -6/Hub_04(d) | Entered Factory 24190 | -5/Factory | Evolved 2 slots: Propulsion x1, Utility x1 24191 | -5/Factory | Identified Exp. Targeting Computer (x2) 24219 | -5/Factory | Lost 4 parts (1p1n2w) 24276 | -5/Factory | Repaired Adv. KE Penetrator 24366 | -5/Factory | Identified exit to Upper Caves 24452 | -5/Factory | Build established: Scavenger-Scrapper 24683 | -5/Factory | Scrapoids reinforcements arrived? 24701 | -5/Factory | Entered Upper Caves 24701 | -5/Upper Caves | Accompanied by 5 allies 24849 | -5/Upper Caves | Attracted the attention of an 0b10 checkpoint 24864 | -5/Upper Caves | Learned 8 Factory zone layouts 24906 | -5/Upper Caves | Learned 4 Factory zone layouts 24936 | -5/Upper Caves | P-70 Sage assimilated allied 05F10-D 25319 | -5/Upper Caves | Found Scrap Suit 25338 | -5/Upper Caves | Activated DRS Beacon 25339 | -5/Upper Caves | Lost 3 allies 25378 | -5/Upper Caves | Entered a destroyed Warlord outpost 25418 | -5/Upper Caves | Learned Factory garrison access intel 25434 | -5/Upper Caves | Discovered new exit (range 16) 25738 | -5/Upper Caves | Entered another Upper Caves area 25882 | -5/Upper Caves | Learned Factory security intel 25894 | -5/Upper Caves | Discovered new exit (range 11) 26251 | -5/Upper Caves | Learned 4 Factory zone layouts 26350 | -5/Upper Caves | Discovered new exit (range 10) 26393 | -5/Upper Caves | Entered Warlord 26423 | -5/Warlord | System corruption reached 10% 26429 | -5/Warlord | System corruption cleaned by Quarantine Array 26700 | -5/Warlord | Rebuked by Warlord 26725 | -5/Warlord | Warlord's base attacked by MAIN.C 26998 | -5/Warlord | Found Prototype Energy Gun 26998 | -5/Warlord | Identified Vortex Rail 27075 | -5/Warlord | Warlord forces counterattacked 27080 | -5/Warlord | Found Prototype Device 27081 | -5/Warlord | Identified Exp. Focal Shield 27085 | -5/Warlord | Found Prototype Processor 27095 | -5/Warlord | Found Prototype Hackware 27100 | -5/Warlord | Found Prototype Device 27100 | -5/Warlord | Identified Exp. Cloaking Device 27109 | -5/Warlord | Found Prototype Reactor 27109 | -5/Warlord | Identified Vortex Chain Reactor 27199 | -5/Warlord | Spotted Executioner 27207 | -5/Warlord | Spotted Executioner 27234 | -5/Warlord | Lost 4 allies 27284 | -5/Warlord | Discovered new exit (range 12) 27400 | -5/Warlord | Warlord base infiltrated, sounded retreat 27687 | -5/Warlord | Lost 7 allies 27707 | -5/Warlord | Entered Proximity Caves 27707 | -4/Proximity Caves | Accompanied by 5 allies 27726 | -4/Proximity Caves | Learned Research emergency access door positions 27797 | -4/Proximity Caves | Learned Research interactive machine intel 28039 | -4/Proximity Caves | Spotted B-86 Titan 28052 | -4/Proximity Caves | Allies destroyed B-86 Titan 28236 | -4/Proximity Caves | Discovered new exit (range 7) 28280 | -4/Proximity Caves | Entered Factory 28280 | -4/Factory | Accompanied by 3 allies 28280 | -4/Factory | Evolved 2 slots: Power x1, Utility x1 28281 | -4/Factory | Identified exit to Research 28283 | -4/Factory | Loaded intel: 4 garrison access locations 28407 | -4/Factory | Identified Ghost Barrier 28409 | -4/Factory | Identified exit to Upper Caves 28451 | -4/Factory | Identified Exp. Target Analyzer 28523 | -4/Factory | P-70 Sage assimilated allied Beamer 6a 28723 | -4/Factory | Scrapoids reinforcements arrived? 28775 | -4/Factory | Entered Upper Caves 28775 | -4/Upper Caves | Accompanied by 6 allies 28918 | -4/Upper Caves | Attracted the attention of an 0b10 outpost 28955 | -4/Upper Caves | Lost 5 allies 29023 | -4/Upper Caves | Encountered a Warlord checkpoint 29161 | -4/Upper Caves | Learned Research emergency access door positions 29265 | -4/Upper Caves | Learned 8 Research zone layouts 29304 | -4/Upper Caves | Spotted B-86 Titan 29319 | -4/Upper Caves | Destroyed B-86 Titan 29324 | -4/Upper Caves | Found Scrap Suit 29371 | -4/Upper Caves | Attracted the attention of an 0b10 checkpoint 29506 | -4/Upper Caves | Discovered new exit (range 5) 29976 | -4/Upper Caves | Entered another Upper Caves area 29976 | -4/Upper Caves | Accompanied by 1 ally 29978 | -4/Upper Caves | Attracted the attention of an 0b10 outpost 30029 | -4/Upper Caves | Destroyed 7 combat bots 30094 | -4/Upper Caves | Attracted the attention of an 0b10 checkpoint 30117 | -4/Upper Caves | Discovered exit to Research (range 9) 30454 | -4/Upper Caves | Discovered new exit (range 9) 30861 | -4/Upper Caves | Learned Research emergency access door positions 31021 | -4/Upper Caves | Entered Zhirov 31024 | -4/Zhirov | Discovered new exit (range 3) 31042 | -4/Zhirov | Met Zhirov 31064 | -4/Zhirov | Learned location of Testing (-3) 31064 | -4/Zhirov | Learned location of Command (-1) 31070 | -4/Zhirov | Zhirov requested help retrieving the SGEMP Prototype 31086 | -4/Zhirov | Found Alien Artifact 31086 | -4/Zhirov | Identified Integrated Dissipator 31086 | -4/Zhirov | Installed Integrated Dissipator, increased core heat dissipation (+20) 31184 | -4/Zhirov | Found Alien Artifact 31262 | -4/Zhirov | Entered Proximity Caves 31335 | -3/Proximity Caves | Spotted B-86 Titan 31750 | -3/Proximity Caves | Discovered exit to Research (range 10) 31879 | -3/Proximity Caves | Entered Research 31879 | -3/Research | Evolved 2 slots: Utility x2 31880 | -3/Research | Identified exit to Armory 31882 | -3/Research | Loaded intel: 47 interactive machine locations 31954 | -3/Research | Scrapoids reinforcements arrived? 32050 | -3/Research | Found Scrap Suit 32078 | -3/Research | Found Scrap Suit 32079 | -3/Research | Revision forces began assault on 0b10 32120 | -3/Research | Scrapoids reinforcements arrived? 32127 | -3/Research | Met up with Revision 17++ 32267 | -3/Research | Identified exit to Testing 32419 | -3/Research | Lost 3 allies 32579 | -3/Research | Research terminal network offline 32633 | -3/Research | Lost 5 allies 33257 | -3/Research | Entered Testing 33387 | -3/Testing | Spotted Striker 33387 | -3/Testing | Spotted Striker 33424 | -3/Testing | Found Hvy. Regenerative Plating 33441 | -3/Testing | Found Z-bomb Delivery System 33527 | -3/Testing | Found Null Cannon 33543 | -3/Testing | Spotted PX-F39KCXGOBM 33552 | -3/Testing | Destroyed PX-F39KCXGOBM 33680 | -3/Testing | Discovered new exit (range 11) 33704 | -3/Testing | Garrison activated, responded to threat 34023 | -3/Testing | Spotted PD-23SVSH6710 34153 | -3/Testing | Found 2N-1CE's Frost Array 34185 | -3/Testing | Found Hyp. Multirail 34215 | -3/Testing | Spotted Superbehemoth 34380 | -3/Testing | Found Omega Cannon 34447 | -3/Testing | Found Potential Cannon 34507 | -3/Testing | First assault squad dispatched 34575 | -3/Testing | Destroyed 8 combat bots 34934 | -3/Testing | Entered Research 34934 | -2/Research | Evolved 2 slots: Propulsion x2 35169 | -2/Research | Garrison activated, responded to threat 35358 | -2/Research | Spotted B-90 Cyclops 35399 | -2/Research | Destroyed B-90 Cyclops 35434 | -2/Research | First assault squad dispatched 35590 | -2/Research | Spotted B-90 Cyclops 35592 | -2/Research | Identified Transdimensional Reconstructor 35592 | -2/Research | Warped through subspace 35674 | -2/Research | Build established: Infiltrator-Tank 36167 | -2/Research | Found Fusion Bomb Launcher 36529 | -2/Research | Destroyed 10 combat bots 36551 | -2/Research | Found Gamma Bomb Array 36688 | -2/Research | Discovered new exit (range 6) 36801 | -2/Research | Entered Quarantine 36870 | -2/Quarantine | Found Alien Impact Weapon 37112 | -2/Quarantine | Cryocooling Duct disabled 37127 | -2/Quarantine | Ambient heat levels rising (+20) 37127 | -2/Quarantine | Non-combat units ordered to evacuate 37322 | -2/Quarantine | Found Alien Artifact 37551 | -2/Quarantine | First assault squad dispatched 37640 | -2/Quarantine | Found Alien Artifact 37730 | -2/Quarantine | Build established: Tank 37788 | -2/Quarantine | Cryocooling Duct disabled 37803 | -2/Quarantine | Ambient heat levels rising (+20) 37803 | -2/Quarantine | Combat units ordered to evacuate 37903 | -2/Quarantine | Quarantine Guard activated 38120 | -2/Quarantine | Spotted Quarantine Guard 38144 | -2/Quarantine | Destroyed Quarantine Guard 38214 | -2/Quarantine | Found Fusion Bomb Launcher 38439 | -2/Quarantine | Spotted Quarantine Guard 38451 | -2/Quarantine | Destroyed Quarantine Guard 38478 | -2/Quarantine | Spotted Quarantine Guard 38484 | -2/Quarantine | Destroyed Quarantine Guard 38494 | -2/Quarantine | Identified Core Reset Matrix 38494 | -2/Quarantine | Identified Subatomic Replicator 38494 | -2/Quarantine | Identified Core Stripper 38494 | -2/Quarantine | Used Core Reset Matrix 38498 | -2/Quarantine | Detected hypermatrix surge 38498 | -2/Quarantine | Sensed 9 artifacts in vicinity 38547 | -2/Quarantine | Spotted Quarantine Guard 38553 | -2/Quarantine | Destroyed Quarantine Guard 38560 | -2/Quarantine | Spotted Quarantine Guard 38579 | -2/Quarantine | Destroyed Quarantine Guard 38593 | -2/Quarantine | Spotted Quarantine Guard 38594 | -2/Quarantine | Destroyed Quarantine Guard 38788 | -2/Quarantine | Spotted Quarantine Guard 38802 | -2/Quarantine | Destroyed Quarantine Guard 39543 | -2/Quarantine | Destroyed Quarantine Guard 39548 | -2/Quarantine | Discovered new exit (range 16) 39574 | -2/Quarantine | Identified exit to Access 39715 | -2/Quarantine | Spotted Fortress 39722 | -2/Quarantine | Destroyed Fortress 39767 | -2/Quarantine | Found Exp. Force Field 39787 | -2/Quarantine | Found Vortex Chain Reactor 39914 | -2/Quarantine | Found Transdimensional Reconstructor 39925 | -2/Quarantine | Found Dimensional Node Initializer 39984 | -2/Quarantine | Spotted Quarantine Guard 39989 | -2/Quarantine | Destroyed Quarantine Guard 40222 | -2/Quarantine | Discovered new exit (range 11) 40222 | -2/Quarantine | Spotted Quarantine Guard 40226 | -2/Quarantine | Spotted Quarantine Guard 40234 | -2/Quarantine | Destroyed Quarantine Guard 40236 | -2/Quarantine | Destroyed Quarantine Guard 40252 | -2/Quarantine | Discovered new exit (range 6) 40643 | -2/Quarantine | Identified exit to Protoforge 40648 | -2/Quarantine | Identified exit to Section 7 40754 | -2/Quarantine | Build established: Scavenger-Tank 41277 | -2/Quarantine | Entered Protoforge 41278 | -2/Protoforge | Sensed 2 artifacts in vicinity 41409 | -2/Protoforge | Superfortress began startup sequence 41420 | -2/Protoforge | Spotted Hotshot 41422 | -2/Protoforge | Spotted Hotshot 41424 | -2/Protoforge | Spotted Hotshot 41440 | -2/Protoforge | Destroyed Hotshot 41440 | -2/Protoforge | Destroyed Hotshot 41441 | -2/Protoforge | Destroyed Hotshot 41494 | -2/Protoforge | Discovered exit to Access (range 3) 41498 | -2/Protoforge | Initialized slip node 41531 | -2/Protoforge | Spotted Hotshot 41531 | -2/Protoforge | Spotted Hotshot 41543 | -2/Protoforge | Spotted Hotshot 41546 | -2/Protoforge | Destroyed Hotshot 41554 | -2/Protoforge | Destroyed Hotshot 41571 | -2/Protoforge | Destroyed Hotshot 41574 | -2/Protoforge | Spotted Hotshot 41579 | -2/Protoforge | Spotted Hotshot 41583 | -2/Protoforge | Spotted Hotshot 41587 | -2/Protoforge | Destroyed Hotshot 41593 | -2/Protoforge | Destroyed Hotshot 41620 | -2/Protoforge | Destroyed Hotshot 41880 | -2/Protoforge | Found Cep. Antimissile System 41959 | -2/Protoforge | Additional patrols dispatched to research labs 42069 | -2/Protoforge | Crushed by falling debris 42087 | -2/Protoforge | Spotted Hotshot 42087 | -2/Protoforge | Spotted Hotshot 42095 | -2/Protoforge | Garrison activated, responded to threat 42096 | -2/Protoforge | Destroyed Hotshot 42100 | -2/Protoforge | Destroyed Hotshot 42193 | -2/Protoforge | Forge Plexus network access discovered 42229 | -2/Protoforge | Found Crosscalibrator 42243 | -2/Protoforge | Spotted Immortal 42248 | -2/Protoforge | Spotted Decapitator 42248 | -2/Protoforge | Spotted Decapitator 42253 | -2/Protoforge | Destroyed Decapitator 42255 | -2/Protoforge | Destroyed Decapitator 42321 | -2/Protoforge | Found Cep. Helical Railcannon 42324 | -2/Protoforge | Found Cep. Plasma Driver 42332 | -2/Protoforge | Found Cep. Miniperforator 42340 | -2/Protoforge | Found Cep. Helical Railcannon 42346 | -2/Protoforge | Found Cep. Miniperforator 42350 | -2/Protoforge | Found Faulty Cep. Plasma Driver 42353 | -2/Protoforge | Spotted V985-e 42374 | -2/Protoforge | Destroyed V985-e 42392 | -2/Protoforge | Found Faulty Cep. Deflector Sword 42414 | -2/Protoforge | Found Faulty Cep. Deflector Sword 42416 | -2/Protoforge | Found Faulty Cep. Plasma Driver 42485 | -2/Protoforge | Build established: Tank 42546 | -2/Protoforge | Spotted V728-c 42547 | -2/Protoforge | Spotted V448-i 42548 | -2/Protoforge | Spotted V729-o 42549 | -2/Protoforge | Spotted V259-i 42564 | -2/Protoforge | Destroyed V448-i 42580 | -2/Protoforge | Destroyed V259-i 42583 | -2/Protoforge | Destroyed V728-c 42604 | -2/Protoforge | Found Prototype Device 42605 | -2/Protoforge | Identified Exp. Shield Generator 42609 | -2/Protoforge | Destroyed 9 combat bots 42632 | -2/Protoforge | Scanned by Researcher 42671 | -2/Protoforge | Found Exp. Kinecellerator 42683 | -2/Protoforge | Found Cep. Chromion Battery 42768 | -2/Protoforge | Found Cep. Beam Splitter 42777 | -2/Protoforge | First assault squad dispatched 42840 | -2/Protoforge | Spotted Decapitator 42840 | -2/Protoforge | Spotted Decapitator 42840 | -2/Protoforge | Spotted Decapitator 42846 | -2/Protoforge | Spotted Decapitator 42848 | -2/Protoforge | Destroyed Decapitator 42848 | -2/Protoforge | Destroyed Decapitator 42851 | -2/Protoforge | Destroyed Decapitator 42854 | -2/Protoforge | Destroyed Decapitator 42893 | -2/Protoforge | Found Cep. Zero-point Core 42899 | -2/Protoforge | Found Cep. Zero-point Core 43028 | -2/Protoforge | Found Corrupted Cep. EMP Blanket Launcher 43048 | -2/Protoforge | Spotted V305-q 43050 | -2/Protoforge | Spotted V423-s 43050 | -2/Protoforge | Destroyed V305-q 43054 | -2/Protoforge | Destroyed V423-s 43090 | -2/Protoforge | Found Prototype Launcher 43173 | -2/Protoforge | Found Cep. Zero-point Core 43177 | -2/Protoforge | Found Faulty Cep. Zero-point Core 43212 | -2/Protoforge | Spotted Immortal 43215 | -2/Protoforge | Spotted V895-r 43239 | -2/Protoforge | Destroyed Immortal 43243 | -2/Protoforge | Found Cep. Matter Streamer 43248 | -2/Protoforge | Spotted V796-j 43248 | -2/Protoforge | Spotted V978-r 43249 | -2/Protoforge | Found Cep. Antigrav Storage Unit 43258 | -2/Protoforge | Found Cep. NT7 Matterbank 43277 | -2/Protoforge | Spotted V868-j 43309 | -2/Protoforge | Destroyed V868-j 43325 | -2/Protoforge | Found Cep. Chromion Battery 43427 | -2/Protoforge | System corruption reached 10% 43484 | -2/Protoforge | Found Cep. Weapon Articulator 43489 | -2/Protoforge | Found Exp. Kinecellerator 43508 | -2/Protoforge | Found Exp. Kinecellerator 43547 | -2/Protoforge | Spotted AP7-3 43547 | -2/Protoforge | Spotted AP7-3 43549 | -2/Protoforge | Destroyed AP7-3 43552 | -2/Protoforge | Destroyed AP7-3 43602 | -2/Protoforge | Found Prototype Device 43604 | -2/Protoforge | Identified Cep. Cloak Mesh 43607 | -2/Protoforge | Found Faulty Cep. Core Analysis Suite 43610 | -2/Protoforge | Found Faulty Cep. Core Analysis Suite 43614 | -2/Protoforge | Used Subatomic Replicator to replicate Faulty Cep. Thermoelectric Network 43616 | -2/Protoforge | Found Faulty Cep. Thermoelectric Network 43623 | -2/Protoforge | Found Cep. Cloak Mesh 43842 | -2/Protoforge | Found Cep. Hypertargeting System 43925 | -2/Protoforge | Found Cep. Nanofilaments [Conductive] 43925 | -2/Protoforge | Installed Cep. Nanofilaments [Conductive], 2 resistances modified: TH -15%, EM +25% 43999 | -2/Protoforge | Warped through subspace to slip node 44001 | -2/Protoforge | Found Transdimensional Reconstructor 44002 | -2/Protoforge | Entered Access 44002 | -1/Access | Evolved 2 slots: Utility x2 44231 | -1/Access | Build established: Alien-Tank 44252 | -1/Access | First assault squad dispatched 44341 | -1/Access | Discovered new exit (range 8) 45314 | -1/Access | Entered Command 45635 | -1/Command | Spotted M Guard 45635 | -1/Command | Spotted M Guard 45635 | -1/Command | Spotted Combat Programmer 45654 | -1/Command | Spotted Combat Programmer 45665 | -1/Command | Destroyed Combat Programmer 45688 | -1/Command | Destroyed M Guard 45698 | -1/Command | Destroyed Combat Programmer 45721 | -1/Command | Identified Com. Tesla Bomb Launcher 45744 | -1/Command | Destroyed M Guard 45744 | -1/Command | All MAIN.C guards destroyed 45774 | -1/Command | Found Corrupted Prototype Energy Cannon 45866 | -1/Command | System corruption reached 10% 45955 | -1/Command | Met MAIN.C 45965 | -1/Command | 0b10 Conduit disabled 45999 | -1/Command | Destroyed MAIN.C Shell 46002 | -1/Command | MAIN.C activated Command garrisons 46037 | -1/Command | Destroyed MAIN.C 46148 | -1/Command | Identified Cld. Nova Cannon 46148 | -1/Command | Discovered new exit (range 39) 46148 | -1/Command | Discovered new exit (range 92) 46148 | -1/Command | Extracted map data and part IDs from MAIN.C's data core 46319 | -1/Command | Found Exp. System Purifier 48267 | -1/Command | Found Exp. Armor Integrity Analyzer 48300 | -1/Command | Found Vortex Chain Reactor 49151 | -1/Command | Build established: Alien-Gunner 50890 | -1/Command | Found Exp. Targeting Computer 51788 | -1/Command | Failed to warp due to unstable space 51848 | -1/Command | Build established: Pyromaniac-Gunner 53812 | -1/Command | Crushed by falling debris 53826 | -1/Command | Crushed by falling debris 53849 | -1/Command | Crushed by falling debris 53851 | -1/Command | Crushed by falling debris 53854 | -1/Command | Crushed by falling debris 53868 | -1/Command | Crushed by falling debris 53882 | -1/Command | Crushed by falling debris 53889 | -1/Command | Crushed by falling debris 53890 | -1/Command | Core integrity fell below 50% 53898 | -1/Command | Crushed by falling debris 53929 | -1/Command | Lost 7 parts (1p6u) 53938 | -1/Command | Crushed by falling debris 53952 | -1/Command | Crushed by falling debris 53958 | -1/Command | Crushed by falling debris 54002 | -1/Command | Crushed by falling debris 54483 | -1/Command | Crushed by falling debris 54503 | *** | Heading to fleet! Last Messages --------------- 54180_ System corrupted: Heat flow error (+208). 54205_ System corrupted: Energy discharge (-48). 54229_ Plasma Slug penetrates Reinforced Barrier. 54248_ System corrupted: Component data lost. 54270_ Plasma Slug penetrates Wall. 54272_ System corrupted: Heat flow error (+110). 54277_ Plasma Slug penetrates Earth. 54288_ System corrupted: Energy discharge (-52). 54331_ System corrupted: Matter fused (-5). 54350_ EBQ=GS:,G&K9JYB|TG4YA/ZY 54457_ System corrupted: IFF burst signal emitted. 54475_ BMTD617H:KCUBBBB|A7PPUWG0:LK2YFO|M7 54483_ The unstable cave ceiling collapses. 54483_ Crushed by falling debris. 54483_ Cep. Hypertargeting System destroyed. 54483_ System corrupted by crushing effect (+2). 54483_ Potential Cannon destroyed. 54491_ Acquired 5 matter. Map ----- +----------------------------------------------------+ | ######?????????# #% + #???????? | | #?????????# #! #### #???????? | | #?????????# # #### ! #???????? | | "" #?????????###### = "" # ! #???????? | | "" ################ =% """# #???????? | | "" + T"##+##+##+#???????? | | "" ############### """## #???????? | | #?????????##### "" ## #???????? | | #?????????# ! ##### #???????? | | +#####?????????# #???????? | | #?????######### #???????? | | #?????# #%= #???????? | | #?????# +=%! ! #???????? | | ##?????# #*[ !% ####???????? | | ################%= #??????????? | | = #??????????? | | ######+##+#??????????? | | ## #??????????? | | % ## #########??? | | ! ## " ! "##??? | | ####### ######### ## / # "##### | | # ## #######???????############### "# | | " ## #????????????########### # ###### | | " ## #????????????# [!#! #????? | | " ## #????????????# *%/*! #????? | | ## ##???????????# @ ### [#! #????? | | " ] # * #???????????# #?# =" !! ##???? | | " # #???????????#####?# # !| #???? | | " # #?????????????????# # ! ##???? | | # # #?????????????????# % # #?#### | | # ] ## ##???????#######???# = # ! #?#??? | | # ## #????????# ##### #######?#?## | | # ##=!#????????# "" #??#?#" | | ###+####=!#????????# "T =*[* #??#?#" | | # % ###=[########## =%*%=[ #??#?#" | | # | =%!%[!%= *=##### #??#?#" | | # %% !=!==################???########### #??#?#" | | # !% ##################????????????????# #??#?#" | | ## ##???# """" #?????????######## #??#?# | | ?# #????# """" #?????????# # #??#?# | | ?# #????# """" ####??????# # #??#?# | | ?# #????# """" + #??????# # #??#?# | | ## ###### ## #??????# # #??#?#" | | # ##+######## # #??#?#" | | + ## """" # + #??#?#! | | ##"##### # ## """" #####+## #??#?#! | | ## # ## """" #?# # ######% | | ## # ## """" #?# T" # * =| | | ## # ## #?# "" # !!!!= | | ## # ## #?# # !!= | +----------------------------------------------------+ Best States ------------- Heat Dissipation 172 Coolant Potential 80 Energy Generation 96 Energy Capacity 2840 Matter Stores 1005 Matter Capacity 1050 Sight Range 23 Robot Scan Range 18 Terrain Scan Range 20 Terrain Scan Density 10 Jamming Range 16 Cloak Strength 9 Power Amplification 30 Additional Mass Support 9 Armor Coverage 1200 Resistance: KI 25 Resistance: TH 75 Resistance: EM 100 Utility Shielding 66 Weapon Shielding 90 Point Defense Rating 480 Projectile Deflection 15 Weapon Cycling 25 Evasion (%) 60 Targeting Accuracy 30 Core Analysis 16 Recoil Reduction 6 Matter Filtering 50 Kinecelleration 66 Salvage Targeting 4 Offensive Hacking 14 Defensive Hacking 12 Authchip Count 2 Item Schematics ----------------- Imp. Diametric Drive | -2/Protoforge | Archive Hvy. Proton Cannon | -2/Protoforge | Archive Robot Schematics ------------------ None Fabricated ------------ Nothing Repaired ---------- Lgt. Treads | 31% | -10/Materials Imp. Light Armor Plating | 34% | -9/Materials Lgt. Treads | 21% | -9/Materials Imp. Light Armor Plating | 33% | -9/Storage Hvy. Armor Plating | 45% | -6/Factory Adv. KE Penetrator | 7% | -5/Factory Alien Tech Used ----------------- Integrated Dissipator Transdimensional Reconstructor Core Reset Matrix Core Stripper Dimensional Node Initializer Subatomic Replicator Concept Nanofilaments [Conductive] Achievements -------------- None Challenges ------------ None Game ------ Seed ControlZhirovKatana Manual? 0 Play Time 08:04:11 Cumulative 596.6 hours Start 2025.08.24 @ 16:39:20 End 2025.09.01 @ 19:08:44 Sessions 13 Manual Loads 0 Difficulty Rogue Special Mode None Game No. 249 Rogue 249 Adventurer 0 Explorer 0 Win Type 2 Total 28 Types 9/4/8/2/1/0/1/1/1/1 Lore% 92 Gallery% 88 Achievement% 81 Wizard Run 0 Options --------- Layout 0 ASCII 0 Keyboard 0 Movement Arrows Keybinds 0 Fullscreen 2 Font 18/SmallcapsGlow Map View 76x50 Zoom Use 0% Tactical HUD 1 Map Filters NONE Filters NONE Steam 1 RUN: 79da64f4-6f4e-442a-b842-70ea793fbd59